Workbook

Sheet Linear
B1: Building Linear Approximations
B2: to the Natural Log Function
B4: This graphing utility lets you try to
B5: build the best linear approximation
B6: to the natural log function
D7: y = ln x
C8: centered about x = 1
A11: Enter the interval for x:
C12: xMin = | D12: 0.5 | E12: =IF(aa0<=0,"This MUST be positive!","") -> 
C13: xMax = | D13: 1.5 | E13: =IF(aa0<=0,"This MUST be < 2!","") -> 
A16: In the linear approximation ln x » a0 + b0(x -1)
A18: What is the constant coefficient a0 (-1 to 1)?
C19: 100 | F19: =(C19-0)/100-1 -> 0 | I19: The largest deviation at 200 evenly spaced points is | O19: =MAX(Calcs!E3:E203) -> 0.1931471806
A21: What is the linear coefficient b0 (0 to 2)? | I21: The sum of the squares of the 200 deviations is | O21: =Calcs!F205 -> 0.848602316
C22: 100 | F22: =(C22-0)/100 -> 1
A24: Your linear polynomial is y = | E24: =TEXT(aa00,"0.00")&" + " &TEXT(bb00,"0.00")&"(x - 1) " -> 0.00 + 1.00(x - 1)
A29: Click each item below for suggestions and investigations
C30: Item 1
C31: Item 2
C32: Item 3
C33: Item 4
C34: Item 5
A37: To access/download all the DIGMath Apps for Calculus
A38: Click this link: | C38: DIGMath for Calculus
A40: Created by: Sheldon P. Gordon
A41: Farmingdale State College
A42: Development of this module was supported by the
A43: NSF's Division of Undergraduate Education
A44: under grants DUE-0310123 and DUE-0442160.

Sheet Quad
B1: Building Quadratic Approximations
B2: to the Natural Log Function
B4: This graphing utility lets you try to
B5: build the best quadratic approximation
B6: to the natural log function
D7: y = ln x
C8: centered about x = 1
A11: Enter the interval for x:
C12: xMin = | D12: 0.5 | E12: =IF(aa0<=0,"This MUST be positive!","") -> 
C13: xMax = | D13: 1.6 | E13: =IF(aa0<=0,"This MUST be < 2!","") -> 
A16: In the quadratic approximation ln x » a0 + b0(x - 1) + c0(x - 1)2
A18: What is the constant coefficient a0 (-1 to 1)?
C19: 100 | F19: =(C19-0)/100-1 -> 0 | I19: The largest deviation at 200 evenly spaced points is | O19: =MAX(Calcs!L3:L203) -> 0.07000362925
A21: What is the linear coefficient b0 (0 to 2)? | I21: The sum of the squares of the 200 deviations is | O21: =Calcs!M205 -> 0.4323832057
C22: 106 | F22: =(C22-0)/100 -> 1.06
A24: What is the quadratic coefficient c0 (-1 to 1)?
C25: 48 | F25: =(C25-0)/100-1 -> -0.52
A27: Your quadratic polynomial is y = | E27: =TEXT(a0,"0.00")&" +" &TEXT(b0,"0.00")&"(x - 1) + "&TEXT(c0,"0.00")&"(x - 1)^2" -> 0.00 +1.06(x - 1) + -0.52(x - 1)^2
A32: Click each item below for suggestions and investigations
D33: Item 1
D34: Item 2
D35: Item 3
D36: Item 4
D37: Item 5
D38: Item 6
A41: To access/download all the DIGMath Apps for Calculus
A42: Click this link: | C42: DIGMath for Calculus
A44: Created by: Sheldon P. Gordon
A45: Farmingdale State College
A46: Development of this module was supported by the
A47: NSF's Division of Undergraduate Education
A48: under grants DUE-0310123 and DUE-0442160.

Sheet Cubic
B1: Building Cubic Approximations
B2: to the Natural Log Function
B4: This graphing utility lets you try to
B5: build the best cubic approximation
B6: to the natural log function
D7: y = ln x
C8: centered about x = 1
A11: Enter the interval for x:
C12: xMin = | D12: 0.5 | E12: =IF(aa0<=0,"This MUST be positive!","") -> 
C13: xMax = | D13: 1.5 | E13: =IF(aa0<=0,"This MUST be < 2!","") -> 
A16: In the cubic approximation ln x » a0 + b0(x - 1) + c0(x - 1)2 + d0(x-1)3
A18: What is the constant coefficient a0 (-1 to 1)?
C19: 100 | F19: =(C19-0)/100-1 -> 0.00 | I19: The largest deviation at 200 evenly spaced points is | O19: =MAX(Calcs!S3:S203) -> 0.07814718056
A21: What is the linear coefficient b0 (0 to 2)? | I21: The sum of the squares of the 200 deviations is | O21: =Calcs!T205 -> 0.2070020127
C22: 90 | F22: =(C22-0)/100 -> 0.90
A24: What is the quadratic coefficient c0 (-1 to 1)?
C25: 50 | F25: =(C25-0)/100-1 -> -0.50
A27: What is the cubic coefficient d0 (-1 to 1)?
C28: 132 | F28: =(C28-0)/100-1 -> 0.32
A30: Your cubic polynomial is y = | E30: =TEXT(a00,"0.00")&" + "&TEXT(b00,"0.00")&"(x - 1) + "&TEXT(c00,"0.00")&"(x - 1)^2 + "&TEXT(d00,"0.00")&"(x - 1)^3" -> 0.00 + 0.90(x - 1) + -0.50(x - 1)^2 + 0.32(x - 1)^3
A35: Click each item below for suggestions and investigations
D36: Item 1
D37: Item 2
D38: Item 3
D39: Item 4
D40: Item 5
D41: Item 6
A44: To access/download all the DIGMath Apps for Calculus
A45: Click this link: | C45: DIGMath for Calculus
A47: Created by: Sheldon P. Gordon
A48: Farmingdale State College
A49: Development of this module was supported by the
A50: NSF's Division of Undergraduate Education
A51: under grants DUE-0310123 and DUE-0442160.

Sheet Quartic
B1: Building Quartic Approximations
B2: to the Natural Log Function
B4: This graphing utility lets you try to
B5: build the best quartic approximation
B6: to the natural log function
D7: y = ln x
C8: centered about x = 1
A11: Enter the interval for x:
C12: xMin = | D12: 0.3 | E12: =IF(aa0<=0,"This MUST be positive!","") -> 
C13: xMax = | D13: 1.7 | E13: =IF(aa0<=0,"This MUST be < 2!","") -> 
A16: In the quartic approximation ln x » a0 + b0(x - 1) + c0(x - 1)2 + d0(x-1)3 + e0(x - 1)4
A18: What is the constant coefficient a0 (-1 to 1)?
C19: 100 | F19: =(C19-0)/100-1 -> 0.00 | I19: The largest deviation at 200 evenly spaced points is | O19: =MAX(Calcs!S3:S203) -> 0.07814718056
A21: What is the linear coefficient b0 (0 to 2)? | I21: The sum of the squares of the 200 deviations is | O21: =Calcs!T205 -> 0.2070020127
C22: 100 | F22: =(C22-0)/100 -> 1.00
A24: What is the quadratic coefficient c0 (-1 to 1)?
C25: 48 | F25: =(C25-0)/100-1 -> -0.52
A27: What is the cubic coefficient d0 (-1 to 1)?
C28: 133 | F28: =(C28-0)/100-1 -> 0.33
A30: What is the quartic coefficient e0 (-1 to 1)?
C31: 75 | F31: =(C31-0)/100-1 -> -0.25
A33: Your quartic polynomial is y = | E33: =TEXT(a000,"0.00")&" + "&TEXT(b000,"0.00")&"(x - 1) + "&TEXT(c000,"0.00")&"(x - 1)^2 + "&TEXT(d000,"0.00")&"(x - 1)^3 +"&TEXT(e000,"0.00")&"(x - 1)^4" -> 0.00 + 1.00(x - 1) + -0.52(x - 1)^2 + 0.33(x - 1)^3 +-0.25(x - 1)^4
A38: Click each item below for suggestions and investigations
C39: Item 1
C40: Item 2
C41: Item 3
C42: Item 4
C43: Item 5
C44: Item 6
A47: To access/download all the DIGMath Apps for Calculus
A48: Click this link: | C48: DIGMath for Calculus
A50: Created by: Sheldon P. Gordon
A51: Farmingdale State College
A52: Development of this module was supported by the
A53: NSF's Division of Undergraduate Education
A54: under grants DUE-0310123 and DUE-0442160.

Sheet Quintic
B1: Building Quintic Approximations
B2: to the Natural Log Function
B4: This graphing utility lets you try to
B5: build the best quintic approximation
B6: to the natural log function
D7: y = ln x
C8: centered about x = 1
A11: Enter the interval for x:
C12: xMin = | D12: 0.3 | E12: =IF(aa0<=0,"This MUST be positive!","") -> 
C13: xMax = | D13: 1.7 | E13: =IF(aa0<=0,"This MUST be < 2!","") -> 
A16: In the quintic approximation ln x » a0 + b0(x - 1) + c0(x - 1)2 + d0(x - 1)3 + e0(x - 1)4 + f0(x - 1)5
A18: What is the constant coefficient a0 (-1 to 1)?
C19: 100 | F19: =(C19-0)/100-1 -> 0.00 | I19: The largest deviation at 200 evenly spaced points is | O19: =MAX(Calcs!AF3:AF203) -> 0.5801188043
A21: What is the linear coefficient b0 (0 to 2)? | I21: The sum of the squares of the 200 deviations is | O21: =Calcs!AH205 -> 5.466502622
C22: 100 | F22: =(C22-0)/100 -> 1.00
A24: What is the quadratic coefficient c0 (-1 to 1)?
C25: 100 | F25: =(C25-0)/100-1 -> 0.00
A27: What is the cubic coefficient d0 (-1 to 1)?
C28: 136 | F28: =(C28-0)/200-1 -> -0.32
A30: What is the quartic coefficient e0 (-1 to 1)?
C31: 100 | F31: =(C31-0)/100-1 -> 0.00
A33: What is the quintic coefficient f0 (0 to 0.5)?
C34: 40 | F34: =(C34-0)/200 -> 0.200
A36: Your quintic polynomial is y = | E36: =TEXT(a0000,"0.00")&" + "&TEXT(b0000,"0.00")&"(x - 1) + "&TEXT(c0000,"0.00")&"(x - 1)^2 + "&TEXT(d0000,"0.00")&"(x - 1)^3 + "&TEXT(e0000,"0.00")&"(x - 1)^4 + "&TEXT(f0000,"0.00")&"(x - 1)^5 " -> 0.00 + 1.00(x - 1) + 0.00(x - 1)^2 + -0.32(x - 1)^3 + 0.00(x - 1)^4 + 0.20(x - 1)^5
A41: Click each item below for suggestions and investigations
C42: Item 1
C43: Item 2
C44: Item 3
C45: Item 4
C46: Item 5
C47: Item 6
A51: To access/download all the DIGMath Apps for Calculus
A52: Click this link: | C52: DIGMath for Calculus
A54: Created by: Sheldon P. Gordon
A55: Farmingdale State College
A56: Development of this module was supported by the
A57: NSF's Division of Undergraduate Education
A58: under grants DUE-0310123 and DUE-0442160.

Sheet Calcs
B1: Linear | I1: Quadatic | P1: Cubic | W1: Quartic | AD1: Quintic
A2: x | B2: ln x | C2: P1(x) | D2: Difference | E2: ABS | F2: Squares | H2: x | I2: ln x | J2: P2(x) | K2: Difference | L2: ABS | M2: Squares | O2: x | P2: ln x | Q2: P3(x) | R2: Difference | S2: ABS | T2: Squares | V2: x | W2: ln x | X2: P4(x) | Y2: Difference | Z2: ABS | AA2: Squares | AC2: x | AD2: ln x | AE2: P5(x) | AF2: Difference | AG2: ABS | AH2: Squares
A3: =aa0 -> 1 | B3: =LN(A3) -> -0.69315 | C3: =aa00+bb00*(A3-1) -> -0.50000 | D3: =C3-B3 -> 0.19315 | E3: =ABS(D3) -> 0.19315 | F3: =D3^2 -> 0.0373 | H3: =a -> 0.5 | I3: =LN(H3) -> -0.69315 | J3: =a0+b0*(A3-1)+c0*(A3-1)^2 -> -0.66000 | K3: =J3-I3 -> 0.03315 | L3: =ABS(K3) -> 0.03315 | M3: =K3^2 -> 0.0011 | O3: =aa -> 0.50 | P3: =LN(O3) -> -0.69315 | Q3: =a00+b00*(O3-1)+c00*(O3-1)^2+d00*(O3-1)^3 -> -0.61500 | R3: =Q3-P3 -> 0.07815 | S3: =ABS(R3) -> 0.07815 | T3: =R3^2 -> 0.0061 | V3: =aaa -> 0.30 | W3: =LN(V3) -> -1.20397 | X3: =a000+b000*(V3-1)+c000*(V3-1)^2+d000*(V3-1)^3+e000*(V3-1)^4 -> -1.12802 | Y3: =X3-W3 -> 0.07596 | Z3: =ABS(Y3) -> 0.07596 | AA3: =Y3^2 -> 0.0058 | AC3: =aaaa -> 0.30 | AD3: =LN(AC3) -> -1.20397 | AE3: =a0000+b0000*(AC3-1)+c0000*(AC3-1)^2+d0000*(AC3-1)^3+e0000*(AC3-1)^4+f0000*(AC3-1)^5 -> -0.62385 | AF3: =AE3-AD3 -> 0.58012 | AG3: =ABS(AF3) -> 0.58012 | AH3: =AF3^2 -> 0.3365
A4: =A3+(bb0-aa0)/200 -> 0.505 | B4: =LN(A4) -> -0.68320 | C4: -0.49500 | D4: =C4-B4 -> 0.18820 | E4: =ABS(D4) -> 0.18820 | F4: =D4^2 -> 0.0354 | H4: =H3+(b-a)/200 -> 0.5055 | I4: -0.68221 | J4: -0.65211 | K4: =J4-I4 -> 0.03009 | L4: =ABS(K4) -> 0.03009 | M4: =K4^2 -> 0.0009 | O4: =O3+(bb-aa)/200 -> 0.505 | P4: -0.68320 | Q4: -0.60682 | R4: =Q4-P4 -> 0.07637 | S4: =ABS(R4) -> 0.07637 | T4: =R4^2 -> 0.0058 | V4: =V3+(bbb-aaa)/200 -> 0.307 | W4: -1.18091 | X4: -1.11022 | Y4: =X4-W4 -> 0.07069 | Z4: =ABS(Y4) -> 0.07069 | AA4: =Y4^2 -> 0.0050 | AC4: =AC3+(bbbb-aaaa)/200 -> 0.307 | AD4: -1.18091 | AE4: -0.61847 | AF4: =AE4-AD4 -> 0.56244 | AG4: =ABS(AF4) -> 0.56244 | AH4: =AF4^2 -> 0.3163
A5: 0.51 | B5: -0.67334 | C5: -0.49000 | D5: 0.18334 | E5: 0.18334 | F5: 0.0336 | H5: 0.511 | I5: -0.67139 | J5: -0.64425 | K5: 0.02713 | L5: 0.02713 | M5: 0.0007 | O5: 0.51 | P5: -0.67334 | Q5: -0.59870 | R5: 0.07465 | S5: 0.07465 | T5: 0.0056 | V5: 0.314 | W5: -1.15836 | X5: -1.09261 | Y5: 0.06575 | Z5: 0.06575 | AA5: 0.0043 | AC5: 0.314 | AD5: -1.15836 | AE5: -0.61308 | AF5: 0.54528 | AG5: 0.54528 | AH5: 0.2973
A6: 0.515 | B6: -0.66359 | C6: -0.48500 | D6: 0.17859 | E6: 0.17859 | F6: 0.0319 | H6: 0.5165 | I6: -0.66068 | J6: -0.63642 | K6: 0.02426 | L6: 0.02426 | M6: 0.0006 | O6: 0.515 | P6: -0.66359 | Q6: -0.59062 | R6: 0.07297 | S6: 0.07297 | T6: 0.0053 | V6: 0.321 | W6: -1.13631 | X6: -1.07519 | Y6: 0.06113 | Z6: 0.06113 | AA6: 0.0037 | AC6: 0.321 | AD6: -1.13631 | AE6: -0.60769 | AF6: 0.52862 | AG6: 0.52862 | AH6: 0.2794
A7: 0.52 | B7: -0.65393 | C7: -0.48000 | D7: 0.17393 | E7: 0.17393 | F7: 0.0303 | H7: 0.522 | I7: -0.65009 | J7: -0.62861 | K7: 0.02148 | L7: 0.02148 | M7: 0.0005 | O7: 0.52 | P7: -0.65393 | Q7: -0.58259 | R7: 0.07134 | S7: 0.07134 | T7: 0.0051 | V7: 0.328 | W7: -1.11474 | X7: -1.05795 | Y7: 0.05679 | Z7: 0.05679 | AA7: 0.0032 | AC7: 0.328 | AD7: -1.11474 | AE7: -0.60230 | AF7: 0.51244 | AG7: 0.51244 | AH7: 0.2626
A8: 0.525 | B8: -0.64436 | C8: -0.47500 | D8: 0.16936 | E8: 0.16936 | F8: 0.0287 | H8: 0.5275 | I8: -0.63961 | J8: -0.62083 | K8: 0.01878 | L8: 0.01878 | M8: 0.0004 | O8: 0.525 | P8: -0.64436 | Q8: -0.57461 | R8: 0.06975 | S8: 0.06975 | T8: 0.0049 | V8: 0.335 | W8: -1.09362 | X8: -1.04089 | Y8: 0.05273 | Z8: 0.05273 | AA8: 0.0028 | AC8: 0.335 | AD8: -1.09362 | AE8: -0.59690 | AF8: 0.49672 | AG8: 0.49672 | AH8: 0.2467
A9: 0.53 | B9: -0.63488 | C9: -0.47000 | D9: 0.16488 | E9: 0.16488 | F9: 0.0272 | H9: 0.533 | I9: -0.62923 | J9: -0.61307 | K9: 0.01617 | L9: 0.01617 | M9: 0.0003 | O9: 0.53 | P9: -0.63488 | Q9: -0.56667 | R9: 0.06820 | S9: 0.06820 | T9: 0.0047 | V9: 0.342 | W9: -1.07294 | X9: -1.02402 | Y9: 0.04893 | Z9: 0.04893 | AA9: 0.0024 | AC9: 0.342 | AD9: -1.07294 | AE9: -0.59150 | AF9: 0.48144 | AG9: 0.48144 | AH9: 0.2318
A10: 0.535 | B10: -0.62549 | C10: -0.46500 | D10: 0.16049 | E10: 0.16049 | F10: 0.0258 | H10: 0.5385 | I10: -0.61897 | J10: -0.60534 | K10: 0.01363 | L10: 0.01363 | M10: 0.0002 | O10: 0.535 | P10: -0.62549 | Q10: -0.55879 | R10: 0.06670 | S10: 0.06670 | T10: 0.0044 | V10: 0.349 | W10: -1.05268 | X10: -1.00732 | Y10: 0.04536 | Z10: 0.04536 | AA10: 0.0021 | AC10: 0.349 | AD10: -1.05268 | AE10: -0.58610 | AF10: 0.46658 | AG10: 0.46658 | AH10: 0.2177
A11: 0.54 | B11: -0.61619 | C11: -0.46000 | D11: 0.15619 | E11: 0.15619 | F11: 0.0244 | H11: 0.544 | I11: -0.60881 | J11: -0.59763 | K11: 0.01117 | L11: 0.01117 | M11: 0.0001 | O11: 0.54 | P11: -0.61619 | Q11: -0.55095 | R11: 0.06524 | S11: 0.06524 | T11: 0.0043 | V11: 0.356 | W11: -1.03282 | X11: -0.99080 | Y11: 0.04202 | Z11: 0.04202 | AA11: 0.0018 | AC11: 0.356 | AD11: -1.03282 | AE11: -0.58069 | AF11: 0.45214 | AG11: 0.45214 | AH11: 0.2044
A12: 0.545 | B12: -0.60697 | C12: -0.45500 | D12: 0.15197 | E12: 0.15197 | F12: 0.0231 | H12: 0.5495 | I12: -0.59875 | J12: -0.58995 | K12: 0.00879 | L12: 0.00879 | M12: 0.0001 | O12: 0.545 | P12: -0.60697 | Q12: -0.54316 | R12: 0.06381 | S12: 0.06381 | T12: 0.0041 | V12: 0.363 | W12: -1.01335 | X12: -0.97446 | Y12: 0.03889 | Z12: 0.03889 | AA12: 0.0015 | AC12: 0.363 | AD12: -1.01335 | AE12: -0.57526 | AF12: 0.43809 | AG12: 0.43809 | AH12: 0.1919
A13: 0.55 | B13: -0.59784 | C13: -0.45000 | D13: 0.14784 | E13: 0.14784 | F13: 0.0219 | H13: 0.555 | I13: -0.58879 | J13: -0.58230 | K13: 0.00649 | L13: 0.00649 | M13: 0.0000 | O13: 0.55 | P13: -0.59784 | Q13: -0.53541 | R13: 0.06243 | S13: 0.06243 | T13: 0.0039 | V13: 0.37 | W13: -0.99425 | X13: -0.95829 | Y13: 0.03597 | Z13: 0.03597 | AA13: 0.0013 | AC13: 0.37 | AD13: -0.99425 | AE13: -0.56983 | AF13: 0.42442 | AG13: 0.42442 | AH13: 0.1801
A14: 0.555 | B14: -0.58879 | C14: -0.44500 | D14: 0.14379 | E14: 0.14379 | F14: 0.0207 | H14: 0.5605 | I14: -0.57893 | J14: -0.57467 | K14: 0.00425 | L14: 0.00425 | M14: 0.0000 | O14: 0.555 | P14: -0.58879 | Q14: -0.52771 | R14: 0.06108 | S14: 0.06108 | T14: 0.0037 | V14: 0.377 | W14: -0.97551 | X14: -0.94228 | Y14: 0.03323 | Z14: 0.03323 | AA14: 0.0011 | AC14: 0.377 | AD14: -0.97551 | AE14: -0.56439 | AF14: 0.41112 | AG14: 0.41112 | AH14: 0.1690
A15: 0.56 | B15: -0.57982 | C15: -0.44000 | D15: 0.13982 | E15: 0.13982 | F15: 0.0195 | H15: 0.566 | I15: -0.56916 | J15: -0.56707 | K15: 0.00209 | L15: 0.00209 | M15: 0.0000 | O15: 0.56 | P15: -0.57982 | Q15: -0.52006 | R15: 0.05976 | S15: 0.05976 | T15: 0.0036 | V15: 0.384 | W15: -0.95711 | X15: -0.92645 | Y15: 0.03066 | Z15: 0.03066 | AA15: 0.0009 | AC15: 0.384 | AD15: -0.95711 | AE15: -0.55894 | AF15: 0.39817 | AG15: 0.39817 | AH15: 0.1585
A16: 0.565 | B16: -0.57093 | C16: -0.43500 | D16: 0.13593 | E16: 0.13593 | F16: 0.0185 | H16: 0.5715 | I16: -0.55949 | J16: -0.55950 | K16: -0.00001 | L16: 0.00001 | M16: 0.0000 | O16: 0.565 | P16: -0.57093 | Q16: -0.51245 | R16: 0.05848 | S16: 0.05848 | T16: 0.0034 | V16: 0.391 | W16: -0.93905 | X16: -0.91078 | Y16: 0.02827 | Z16: 0.02827 | AA16: 0.0008 | AC16: 0.391 | AD16: -0.93905 | AE16: -0.55348 | AF16: 0.38557 | AG16: 0.38557 | AH16: 0.1487
A17: 0.57 | B17: -0.56212 | C17: -0.43000 | D17: 0.13212 | E17: 0.13212 | F17: 0.0175 | H17: 0.577 | I17: -0.54991 | J17: -0.55195 | K17: -0.00203 | L17: 0.00203 | M17: 0.0000 | O17: 0.57 | P17: -0.56212 | Q17: -0.50489 | R17: 0.05723 | S17: 0.05723 | T17: 0.0033 | V17: 0.398 | W17: -0.92130 | X17: -0.89528 | Y17: 0.02602 | Z17: 0.02602 | AA17: 0.0007 | AC17: 0.398 | AD17: -0.92130 | AE17: -0.54800 | AF17: 0.37330 | AG17: 0.37330 | AH17: 0.1394
A18: 0.575 | B18: -0.55339 | C18: -0.42500 | D18: 0.12839 | E18: 0.12839 | F18: 0.0165 | H18: 0.5825 | I18: -0.54043 | J18: -0.54443 | K18: -0.00400 | L18: 0.00400 | M18: 0.0000 | O18: 0.575 | P18: -0.55339 | Q18: -0.49738 | R18: 0.05601 | S18: 0.05601 | T18: 0.0031 | V18: 0.405 | W18: -0.90387 | X18: -0.87994 | Y18: 0.02393 | Z18: 0.02393 | AA18: 0.0006 | AC18: 0.405 | AD18: -0.90387 | AE18: -0.54251 | AF18: 0.36136 | AG18: 0.36136 | AH18: 0.1306
A19: 0.58 | B19: -0.54473 | C19: -0.42000 | D19: 0.12473 | E19: 0.12473 | F19: 0.0156 | H19: 0.588 | I19: -0.53103 | J19: -0.53693 | K19: -0.00590 | L19: 0.00590 | M19: 0.0000 | O19: 0.58 | P19: -0.54473 | Q19: -0.48991 | R19: 0.05482 | S19: 0.05482 | T19: 0.0030 | V19: 0.412 | W19: -0.88673 | X19: -0.86476 | Y19: 0.02197 | Z19: 0.02197 | AA19: 0.0005 | AC19: 0.412 | AD19: -0.88673 | AE19: -0.53700 | AF19: 0.34973 | AG19: 0.34973 | AH19: 0.1223
A20: 0.585 | B20: -0.53614 | C20: -0.41500 | D20: 0.12114 | E20: 0.12114 | F20: 0.0147 | H20: 0.5935 | I20: -0.52172 | J20: -0.52946 | K20: -0.00774 | L20: 0.00774 | M20: 0.0001 | O20: 0.585 | P20: -0.53614 | Q20: -0.48248 | R20: 0.05366 | S20: 0.05366 | T20: 0.0029 | V20: 0.419 | W20: -0.86988 | X20: -0.84974 | Y20: 0.02015 | Z20: 0.02015 | AA20: 0.0004 | AC20: 0.419 | AD20: -0.86988 | AE20: -0.53148 | AF20: 0.33840 | AG20: 0.33840 | AH20: 0.1145
A21: 0.59 | B21: -0.52763 | C21: -0.41000 | D21: 0.11763 | E21: 0.11763 | F21: 0.0138 | H21: 0.599 | I21: -0.51249 | J21: -0.52201 | K21: -0.00952 | L21: 0.00952 | M21: 0.0001 | O21: 0.59 | P21: -0.52763 | Q21: -0.47510 | R21: 0.05253 | S21: 0.05253 | T21: 0.0028 | V21: 0.426 | W21: -0.85332 | X21: -0.83488 | Y21: 0.01844 | Z21: 0.01844 | AA21: 0.0003 | AC21: 0.426 | AD21: -0.85332 | AE21: -0.52594 | AF21: 0.32737 | AG21: 0.32737 | AH21: 0.1072
A22: 0.595 | B22: -0.51919 | C22: -0.40500 | D22: 0.11419 | E22: 0.11419 | F22: 0.0130 | H22: 0.6045 | I22: -0.50335 | J22: -0.51459 | K22: -0.01124 | L22: 0.01124 | M22: 0.0001 | O22: 0.595 | P22: -0.51919 | Q22: -0.46777 | R22: 0.05142 | S22: 0.05142 | T22: 0.0026 | V22: 0.433 | W22: -0.83702 | X22: -0.82017 | Y22: 0.01685 | Z22: 0.01685 | AA22: 0.0003 | AC22: 0.433 | AD22: -0.83702 | AE22: -0.52039 | AF22: 0.31663 | AG22: 0.31663 | AH22: 0.1003
A23: 0.6 | B23: -0.51083 | C23: -0.40000 | D23: 0.11083 | E23: 0.11083 | F23: 0.0123 | H23: 0.61 | I23: -0.49430 | J23: -0.50720 | K23: -0.01290 | L23: 0.01290 | M23: 0.0002 | O23: 0.6 | P23: -0.51083 | Q23: -0.46048 | R23: 0.05035 | S23: 0.05035 | T23: 0.0025 | V23: 0.44 | W23: -0.82098 | X23: -0.80561 | Y23: 0.01537 | Z23: 0.01537 | AA23: 0.0002 | AC23: 0.44 | AD23: -0.82098 | AE23: -0.51482 | AF23: 0.30616 | AG23: 0.30616 | AH23: 0.0937
A24: 0.605 | B24: -0.50253 | C24: -0.39500 | D24: 0.10753 | E24: 0.10753 | F24: 0.0116 | H24: 0.6155 | I24: -0.48532 | J24: -0.49983 | K24: -0.01451 | L24: 0.01451 | M24: 0.0002 | O24: 0.605 | P24: -0.50253 | Q24: -0.45323 | R24: 0.04929 | S24: 0.04929 | T24: 0.0024 | V24: 0.447 | W24: -0.80520 | X24: -0.79121 | Y24: 0.01399 | Z24: 0.01399 | AA24: 0.0002 | AC24: 0.447 | AD24: -0.80520 | AE24: -0.50923 | AF24: 0.29597 | AG24: 0.29597 | AH24: 0.0876
A25: 0.61 | B25: -0.49430 | C25: -0.39000 | D25: 0.10430 | E25: 0.10430 | F25: 0.0109 | H25: 0.621 | I25: -0.47642 | J25: -0.49249 | K25: -0.01607 | L25: 0.01607 | M25: 0.0003 | O25: 0.61 | P25: -0.49430 | Q25: -0.44603 | R25: 0.04826 | S25: 0.04826 | T25: 0.0023 | V25: 0.454 | W25: -0.78966 | X25: -0.77695 | Y25: 0.01270 | Z25: 0.01270 | AA25: 0.0002 | AC25: 0.454 | AD25: -0.78966 | AE25: -0.50362 | AF25: 0.28604 | AG25: 0.28604 | AH25: 0.0818
A26: 0.615 | B26: -0.48613 | C26: -0.38500 | D26: 0.10113 | E26: 0.10113 | F26: 0.0102 | H26: 0.6265 | I26: -0.46761 | J26: -0.48518 | K26: -0.01757 | L26: 0.01757 | M26: 0.0003 | O26: 0.615 | P26: -0.48613 | Q26: -0.43887 | R26: 0.04726 | S26: 0.04726 | T26: 0.0022 | V26: 0.461 | W26: -0.77436 | X26: -0.76285 | Y26: 0.01151 | Z26: 0.01151 | AA26: 0.0001 | AC26: 0.461 | AD26: -0.77436 | AE26: -0.49799 | AF26: 0.27637 | AG26: 0.27637 | AH26: 0.0764
A27: 0.62 | B27: -0.47804 | C27: -0.38000 | D27: 0.09804 | E27: 0.09804 | F27: 0.0096 | H27: 0.632 | I27: -0.45887 | J27: -0.47789 | K27: -0.01902 | L27: 0.01902 | M27: 0.0004 | O27: 0.62 | P27: -0.47804 | Q27: -0.43176 | R27: 0.04628 | S27: 0.04628 | T27: 0.0021 | V27: 0.468 | W27: -0.75929 | X27: -0.74889 | Y27: 0.01040 | Z27: 0.01040 | AA27: 0.0001 | AC27: 0.468 | AD27: -0.75929 | AE27: -0.49234 | AF27: 0.26695 | AG27: 0.26695 | AH27: 0.0713
A28: 0.625 | B28: -0.47000 | C28: -0.37500 | D28: 0.09500 | E28: 0.09500 | F28: 0.0090 | H28: 0.6375 | I28: -0.45020 | J28: -0.47063 | K28: -0.02042 | L28: 0.02042 | M28: 0.0004 | O28: 0.625 | P28: -0.47000 | Q28: -0.42469 | R28: 0.04532 | S28: 0.04532 | T28: 0.0021 | V28: 0.475 | W28: -0.74444 | X28: -0.73507 | Y28: 0.00937 | Z28: 0.00937 | AA28: 0.0001 | AC28: 0.475 | AD28: -0.74444 | AE28: -0.48667 | AF28: 0.25777 | AG28: 0.25777 | AH28: 0.0664
A29: 0.63 | B29: -0.46204 | C29: -0.37000 | D29: 0.09204 | E29: 0.09204 | F29: 0.0085 | H29: 0.643 | I29: -0.44161 | J29: -0.46339 | K29: -0.02178 | L29: 0.02178 | M29: 0.0005 | O29: 0.63 | P29: -0.46204 | Q29: -0.41766 | R29: 0.04438 | S29: 0.04438 | T29: 0.0020 | V29: 0.482 | W29: -0.72981 | X29: -0.72140 | Y29: 0.00842 | Z29: 0.00842 | AA29: 0.0001 | AC29: 0.482 | AD29: -0.72981 | AE29: -0.48098 | AF29: 0.24883 | AG29: 0.24883 | AH29: 0.0619
A30: 0.635 | B30: -0.45413 | C30: -0.36500 | D30: 0.08913 | E30: 0.08913 | F30: 0.0079 | H30: 0.6485 | I30: -0.43309 | J30: -0.45618 | K30: -0.02308 | L30: 0.02308 | M30: 0.0005 | O30: 0.635 | P30: -0.45413 | Q30: -0.41067 | R30: 0.04346 | S30: 0.04346 | T30: 0.0019 | V30: 0.489 | W30: -0.71539 | X30: -0.70786 | Y30: 0.00753 | Z30: 0.00753 | AA30: 0.0001 | AC30: 0.489 | AD30: -0.71539 | AE30: -0.47527 | AF30: 0.24012 | AG30: 0.24012 | AH30: 0.0577
A31: 0.64 | B31: -0.44629 | C31: -0.36000 | D31: 0.08629 | E31: 0.08629 | F31: 0.0074 | H31: 0.654 | I31: -0.42465 | J31: -0.44899 | K31: -0.02434 | L31: 0.02434 | M31: 0.0006 | O31: 0.64 | P31: -0.44629 | Q31: -0.40373 | R31: 0.04256 | S31: 0.04256 | T31: 0.0018 | V31: 0.496 | W31: -0.70118 | X31: -0.69447 | Y31: 0.00671 | Z31: 0.00671 | AA31: 0.0000 | AC31: 0.496 | AD31: -0.70118 | AE31: -0.46954 | AF31: 0.23164 | AG31: 0.23164 | AH31: 0.0537
A32: 0.645 | B32: -0.43850 | C32: -0.35500 | D32: 0.08350 | E32: 0.08350 | F32: 0.0070 | H32: 0.6595 | I32: -0.41627 | J32: -0.44183 | K32: -0.02556 | L32: 0.02556 | M32: 0.0007 | O32: 0.645 | P32: -0.43850 | Q32: -0.39683 | R32: 0.04168 | S32: 0.04168 | T32: 0.0017 | V32: 0.503 | W32: -0.68717 | X32: -0.68121 | Y32: 0.00596 | Z32: 0.00596 | AA32: 0.0000 | AC32: 0.503 | AD32: -0.68717 | AE32: -0.46378 | AF32: 0.22338 | AG32: 0.22338 | AH32: 0.0499
A33: 0.65 | B33: -0.43078 | C33: -0.35000 | D33: 0.08078 | E33: 0.08078 | F33: 0.0065 | H33: 0.665 | I33: -0.40797 | J33: -0.43470 | K33: -0.02673 | L33: 0.02673 | M33: 0.0007 | O33: 0.65 | P33: -0.43078 | Q33: -0.38997 | R33: 0.04081 | S33: 0.04081 | T33: 0.0017 | V33: 0.51 | W33: -0.67334 | X33: -0.66809 | Y33: 0.00526 | Z33: 0.00526 | AA33: 0.0000 | AC33: 0.51 | AD33: -0.67334 | AE33: -0.45800 | AF33: 0.21534 | AG33: 0.21534 | AH33: 0.0464
A34: 0.655 | B34: -0.42312 | C34: -0.34500 | D34: 0.07812 | E34: 0.07812 | F34: 0.0061 | H34: 0.6705 | I34: -0.39973 | J34: -0.42759 | K34: -0.02786 | L34: 0.02786 | M34: 0.0008 | O34: 0.655 | P34: -0.42312 | Q34: -0.38315 | R34: 0.03997 | S34: 0.03997 | T34: 0.0016 | V34: 0.517 | W34: -0.65971 | X34: -0.65510 | Y34: 0.00461 | Z34: 0.00461 | AA34: 0.0000 | AC34: 0.517 | AD34: -0.65971 | AE34: -0.45220 | AF34: 0.20751 | AG34: 0.20751 | AH34: 0.0431
A35: 0.66 | B35: -0.41552 | C35: -0.34000 | D35: 0.07552 | E35: 0.07552 | F35: 0.0057 | H35: 0.676 | I35: -0.39156 | J35: -0.42051 | K35: -0.02895 | L35: 0.02895 | M35: 0.0008 | O35: 0.66 | P35: -0.41552 | Q35: -0.37638 | R35: 0.03914 | S35: 0.03914 | T35: 0.0015 | V35: 0.524 | W35: -0.64626 | X35: -0.64224 | Y35: 0.00402 | Z35: 0.00402 | AA35: 0.0000 | AC35: 0.524 | AD35: -0.64626 | AE35: -0.44638 | AF35: 0.19989 | AG35: 0.19989 | AH35: 0.0400
A36: =A35+(bb0-aa0)/200 -> 0.665 | B36: -0.40797 | C36: -0.33500 | D36: 0.07297 | E36: 0.07297 | F36: 0.0053 | H36: 0.6815 | I36: -0.38346 | J36: -0.41346 | K36: -0.03000 | L36: 0.03000 | M36: 0.0009 | O36: =O35+(bb-aa)/200 -> 0.665 | P36: -0.40797 | Q36: -0.36964 | R36: 0.03833 | S36: 0.03833 | T36: 0.0015 | V36: =V35+(bbb-aaa)/200 -> 0.531 | W36: -0.63299 | X36: -0.62952 | Y36: 0.00347 | Z36: 0.00347 | AA36: 0.0000 | AC36: =AC35+(bbbb-aaaa)/200 -> 0.531 | AD36: -0.63299 | AE36: -0.44053 | AF36: 0.19247 | AG36: 0.19247 | AH36: 0.0370
A37: 0.67 | B37: -0.40048 | C37: -0.33000 | D37: 0.07048 | E37: 0.07048 | F37: 0.0050 | H37: 0.687 | I37: -0.37542 | J37: -0.40643 | K37: -0.03101 | L37: 0.03101 | M37: 0.0010 | O37: 0.67 | P37: -0.40048 | Q37: -0.36295 | R37: 0.03753 | S37: 0.03753 | T37: 0.0014 | V37: 0.538 | W37: -0.61990 | X37: -0.61692 | Y37: 0.00297 | Z37: 0.00297 | AA37: 0.0000 | AC37: 0.538 | AD37: -0.61990 | AE37: -0.43465 | AF37: 0.18524 | AG37: 0.18524 | AH37: 0.0343
A38: 0.675 | B38: -0.39304 | C38: -0.32500 | D38: 0.06804 | E38: 0.06804 | F38: 0.0046 | H38: 0.6925 | I38: -0.36745 | J38: -0.39943 | K38: -0.03198 | L38: 0.03198 | M38: 0.0010 | O38: 0.675 | P38: -0.39304 | Q38: -0.35630 | R38: 0.03675 | S38: 0.03675 | T38: 0.0014 | V38: 0.545 | W38: -0.60697 | X38: -0.60445 | Y38: 0.00252 | Z38: 0.00252 | AA38: 0.0000 | AC38: 0.545 | AD38: -0.60697 | AE38: -0.42876 | AF38: 0.17821 | AG38: 0.17821 | AH38: 0.0318
A39: 0.68 | B39: -0.38566 | C39: -0.32000 | D39: 0.06566 | E39: 0.06566 | F39: 0.0043 | H39: 0.698 | I39: -0.35954 | J39: -0.39245 | K39: -0.03291 | L39: 0.03291 | M39: 0.0011 | O39: 0.68 | P39: -0.38566 | Q39: -0.34969 | R39: 0.03598 | S39: 0.03598 | T39: 0.0013 | V39: 0.552 | W39: -0.59421 | X39: -0.59211 | Y39: 0.00210 | Z39: 0.00210 | AA39: 0.0000 | AC39: 0.552 | AD39: -0.59421 | AE39: -0.42284 | AF39: 0.17137 | AG39: 0.17137 | AH39: 0.0294
A40: 0.685 | B40: -0.37834 | C40: -0.31500 | D40: 0.06334 | E40: 0.06334 | F40: 0.0040 | H40: 0.7035 | I40: -0.35169 | J40: -0.38550 | K40: -0.03381 | L40: 0.03381 | M40: 0.0011 | O40: 0.685 | P40: -0.37834 | Q40: -0.34311 | R40: 0.03522 | S40: 0.03522 | T40: 0.0012 | V40: 0.559 | W40: -0.58161 | X40: -0.57989 | Y40: 0.00172 | Z40: 0.00172 | AA40: 0.0000 | AC40: 0.559 | AD40: -0.58161 | AE40: -0.41689 | AF40: 0.16471 | AG40: 0.16471 | AH40: 0.0271
A41: 0.69 | B41: -0.37106 | C41: -0.31000 | D41: 0.06106 | E41: 0.06106 | F41: 0.0037 | H41: 0.709 | I41: -0.34390 | J41: -0.37857 | K41: -0.03467 | L41: 0.03467 | M41: 0.0012 | O41: 0.69 | P41: -0.37106 | Q41: -0.33658 | R41: 0.03448 | S41: 0.03448 | T41: 0.0012 | V41: 0.566 | W41: -0.56916 | X41: -0.56779 | Y41: 0.00137 | Z41: 0.00137 | AA41: 0.0000 | AC41: 0.566 | AD41: -0.56916 | AE41: -0.41092 | AF41: 0.15824 | AG41: 0.15824 | AH41: 0.0250
A42: 0.695 | B42: -0.36384 | C42: -0.30500 | D42: 0.05884 | E42: 0.05884 | F42: 0.0035 | H42: 0.7145 | I42: -0.33617 | J42: -0.37167 | K42: -0.03550 | L42: 0.03550 | M42: 0.0013 | O42: 0.695 | P42: -0.36384 | Q42: -0.33009 | R42: 0.03375 | S42: 0.03375 | T42: 0.0011 | V42: 0.573 | W42: -0.55687 | X42: -0.55581 | Y42: 0.00106 | Z42: 0.00106 | AA42: 0.0000 | AC42: 0.573 | AD42: -0.55687 | AE42: -0.40493 | AF42: 0.15194 | AG42: 0.15194 | AH42: 0.0231
A43: 0.7 | B43: -0.35667 | C43: -0.30000 | D43: 0.05667 | E43: 0.05667 | F43: 0.0032 | H43: 0.72 | I43: -0.32850 | J43: -0.36480 | K43: -0.03630 | L43: 0.03630 | M43: 0.0013 | O43: 0.7 | P43: -0.35667 | Q43: -0.32364 | R43: 0.03303 | S43: 0.03303 | T43: 0.0011 | V43: 0.58 | W43: -0.54473 | X43: -0.54396 | Y43: 0.00077 | Z43: 0.00077 | AA43: 0.0000 | AC43: 0.58 | AD43: -0.54473 | AE43: -0.39891 | AF43: 0.14582 | AG43: 0.14582 | AH43: 0.0213
A44: 0.705 | B44: -0.34956 | C44: -0.29500 | D44: 0.05456 | E44: 0.05456 | F44: 0.0030 | H44: 0.7255 | I44: -0.32089 | J44: -0.35795 | K44: -0.03706 | L44: 0.03706 | M44: 0.0014 | O44: 0.705 | P44: -0.34956 | Q44: -0.31723 | R44: 0.03233 | S44: 0.03233 | T44: 0.0010 | V44: 0.587 | W44: -0.53273 | X44: -0.53222 | Y44: 0.00051 | Z44: 0.00051 | AA44: 0.0000 | AC44: 0.587 | AD44: -0.53273 | AE44: -0.39286 | AF44: 0.13987 | AG44: 0.13987 | AH44: 0.0196
A45: 0.71 | B45: -0.34249 | C45: -0.29000 | D45: 0.05249 | E45: 0.05249 | F45: 0.0028 | H45: 0.731 | I45: -0.31334 | J45: -0.35113 | K45: -0.03779 | L45: 0.03779 | M45: 0.0014 | O45: 0.71 | P45: -0.34249 | Q45: -0.31085 | R45: 0.03164 | S45: 0.03164 | T45: 0.0010 | V45: 0.594 | W45: -0.52088 | X45: -0.52059 | Y45: 0.00028 | Z45: 0.00028 | AA45: 0.0000 | AC45: 0.594 | AD45: -0.52088 | AE45: -0.38679 | AF45: 0.13409 | AG45: 0.13409 | AH45: 0.0180
A46: 0.715 | B46: -0.33547 | C46: -0.28500 | D46: 0.05047 | E46: 0.05047 | F46: 0.0025 | H46: 0.7365 | I46: -0.30585 | J46: -0.34434 | K46: -0.03849 | L46: 0.03849 | M46: 0.0015 | O46: 0.715 | P46: -0.33547 | Q46: -0.30452 | R46: 0.03095 | S46: 0.03095 | T46: 0.0010 | V46: 0.601 | W46: -0.50916 | X46: -0.50908 | Y46: 0.00008 | Z46: 0.00008 | AA46: 0.0000 | AC46: 0.601 | AD46: -0.50916 | AE46: -0.38070 | AF46: 0.12846 | AG46: 0.12846 | AH46: 0.0165
A47: 0.72 | B47: -0.32850 | C47: -0.28000 | D47: 0.04850 | E47: 0.04850 | F47: 0.0024 | H47: 0.742 | I47: -0.29841 | J47: -0.33757 | K47: -0.03916 | L47: 0.03916 | M47: 0.0015 | O47: 0.72 | P47: -0.32850 | Q47: -0.29822 | R47: 0.03028 | S47: 0.03028 | T47: 0.0009 | V47: 0.608 | W47: -0.49758 | X47: -0.49769 | Y47: -0.00011 | Z47: 0.00011 | AA47: 0.0000 | AC47: 0.608 | AD47: -0.49758 | AE47: -0.37458 | AF47: 0.12300 | AG47: 0.12300 | AH47: 0.0151
A48: 0.725 | B48: -0.32158 | C48: -0.27500 | D48: 0.04658 | E48: 0.04658 | F48: 0.0022 | H48: 0.7475 | I48: -0.29102 | J48: -0.33083 | K48: -0.03980 | L48: 0.03980 | M48: 0.0016 | O48: 0.725 | P48: -0.32158 | Q48: -0.29197 | R48: 0.02962 | S48: 0.02962 | T48: 0.0009 | V48: 0.615 | W48: -0.48613 | X48: -0.48640 | Y48: -0.00027 | Z48: 0.00027 | AA48: 0.0000 | AC48: 0.615 | AD48: -0.48613 | AE48: -0.36843 | AF48: 0.11770 | AG48: 0.11770 | AH48: 0.0139
A49: 0.73 | B49: -0.31471 | C49: -0.27000 | D49: 0.04471 | E49: 0.04471 | F49: 0.0020 | H49: 0.753 | I49: -0.28369 | J49: -0.32411 | K49: -0.04042 | L49: 0.04042 | M49: 0.0016 | O49: 0.73 | P49: -0.31471 | Q49: -0.28575 | R49: 0.02896 | S49: 0.02896 | T49: 0.0008 | V49: 0.622 | W49: -0.47482 | X49: -0.47523 | Y49: -0.00041 | Z49: 0.00041 | AA49: 0.0000 | AC49: 0.622 | AD49: -0.47482 | AE49: -0.36226 | AF49: 0.11255 | AG49: 0.11255 | AH49: 0.0127
A50: 0.735 | B50: -0.30788 | C50: -0.26500 | D50: 0.04288 | E50: 0.04288 | F50: 0.0018 | H50: 0.7585 | I50: -0.27641 | J50: -0.31742 | K50: -0.04100 | L50: 0.04100 | M50: 0.0017 | O50: 0.735 | P50: -0.30788 | Q50: -0.27957 | R50: 0.02832 | S50: 0.02832 | T50: 0.0008 | V50: 0.629 | W50: -0.46362 | X50: -0.46416 | Y50: -0.00054 | Z50: 0.00054 | AA50: 0.0000 | AC50: 0.629 | AD50: -0.46362 | AE50: -0.35606 | AF50: 0.10756 | AG50: 0.10756 | AH50: 0.0116
A51: 0.74 | B51: -0.30111 | C51: -0.26000 | D51: 0.04111 | E51: 0.04111 | F51: 0.0017 | H51: 0.764 | I51: -0.26919 | J51: -0.31075 | K51: -0.04156 | L51: 0.04156 | M51: 0.0017 | O51: 0.74 | P51: -0.30111 | Q51: -0.27342 | R51: 0.02768 | S51: 0.02768 | T51: 0.0008 | V51: 0.636 | W51: -0.45256 | X51: -0.45320 | Y51: -0.00065 | Z51: 0.00065 | AA51: 0.0000 | AC51: 0.636 | AD51: -0.45256 | AE51: -0.34984 | AF51: 0.10271 | AG51: 0.10271 | AH51: 0.0105
A52: 0.745 | B52: -0.29437 | C52: -0.25500 | D52: 0.03937 | E52: 0.03937 | F52: 0.0016 | H52: 0.7695 | I52: -0.26201 | J52: -0.30411 | K52: -0.04210 | L52: 0.04210 | M52: 0.0018 | O52: 0.745 | P52: -0.29437 | Q52: -0.26732 | R52: 0.02705 | S52: 0.02705 | T52: 0.0007 | V52: 0.643 | W52: -0.44161 | X52: -0.44235 | Y52: -0.00074 | Z52: 0.00074 | AA52: 0.0000 | AC52: 0.643 | AD52: -0.44161 | AE52: -0.34360 | AF52: 0.09801 | AG52: 0.09801 | AH52: 0.0096
A53: 0.75 | B53: -0.28768 | C53: -0.25000 | D53: 0.03768 | E53: 0.03768 | F53: 0.0014 | H53: 0.775 | I53: -0.25489 | J53: -0.29750 | K53: -0.04261 | L53: 0.04261 | M53: 0.0018 | O53: 0.75 | P53: -0.28768 | Q53: -0.26125 | R53: 0.02643 | S53: 0.02643 | T53: 0.0007 | V53: 0.65 | W53: -0.43078 | X53: -0.43160 | Y53: -0.00082 | Z53: 0.00082 | AA53: 0.0000 | AC53: 0.65 | AD53: -0.43078 | AE53: -0.33733 | AF53: 0.09345 | AG53: 0.09345 | AH53: 0.0087
A54: 0.755 | B54: -0.28104 | C54: -0.24500 | D54: 0.03604 | E54: 0.03604 | F54: 0.0013 | H54: 0.7805 | I54: -0.24782 | J54: -0.29091 | K54: -0.04309 | L54: 0.04309 | M54: 0.0019 | O54: 0.755 | P54: -0.28104 | Q54: -0.25522 | R54: 0.02582 | S54: 0.02582 | T54: 0.0007 | V54: 0.657 | W54: -0.42007 | X54: -0.42095 | Y54: -0.00088 | Z54: 0.00088 | AA54: 0.0000 | AC54: 0.657 | AD54: -0.42007 | AE54: -0.33104 | AF54: 0.08903 | AG54: 0.08903 | AH54: 0.0079
A55: 0.76 | B55: -0.27444 | C55: -0.24000 | D55: 0.03444 | E55: 0.03444 | F55: 0.0012 | H55: 0.786 | I55: -0.24080 | J55: -0.28435 | K55: -0.04355 | L55: 0.04355 | M55: 0.0019 | O55: 0.76 | P55: -0.27444 | Q55: -0.24922 | R55: 0.02521 | S55: 0.02521 | T55: 0.0006 | V55: 0.664 | W55: -0.40947 | X55: -0.41041 | Y55: -0.00094 | Z55: 0.00094 | AA55: 0.0000 | AC55: 0.664 | AD55: -0.40947 | AE55: -0.32472 | AF55: 0.08476 | AG55: 0.08476 | AH55: 0.0072
A56: 0.765 | B56: -0.26788 | C56: -0.23500 | D56: 0.03288 | E56: 0.03288 | F56: 0.0011 | H56: 0.7915 | I56: -0.23383 | J56: -0.27782 | K56: -0.04399 | L56: 0.04399 | M56: 0.0019 | O56: 0.765 | P56: -0.26788 | Q56: -0.24327 | R56: 0.02461 | S56: 0.02461 | T56: 0.0006 | V56: 0.671 | W56: -0.39899 | X56: -0.39997 | Y56: -0.00098 | Z56: 0.00098 | AA56: 0.0000 | AC56: 0.671 | AD56: -0.39899 | AE56: -0.31838 | AF56: 0.08061 | AG56: 0.08061 | AH56: 0.0065
A57: 0.77 | B57: -0.26136 | C57: -0.23000 | D57: 0.03136 | E57: 0.03136 | F57: 0.0010 | H57: 0.797 | I57: -0.22690 | J57: -0.27131 | K57: -0.04441 | L57: 0.04441 | M57: 0.0020 | O57: 0.77 | P57: -0.26136 | Q57: -0.23734 | R57: 0.02402 | S57: 0.02402 | T57: 0.0006 | V57: 0.678 | W57: -0.38861 | X57: -0.38962 | Y57: -0.00101 | Z57: 0.00101 | AA57: 0.0000 | AC57: 0.678 | AD57: -0.38861 | AE57: -0.31201 | AF57: 0.07660 | AG57: 0.07660 | AH57: 0.0059
A58: 0.775 | B58: -0.25489 | C58: -0.22500 | D58: 0.02989 | E58: 0.02989 | F58: 0.0009 | H58: 0.8025 | I58: -0.22002 | J58: -0.26483 | K58: -0.04480 | L58: 0.04480 | M58: 0.0020 | O58: 0.775 | P58: -0.25489 | Q58: -0.23146 | R58: 0.02343 | S58: 0.02343 | T58: 0.0005 | V58: 0.685 | W58: -0.37834 | X58: -0.37937 | Y58: -0.00104 | Z58: 0.00104 | AA58: 0.0000 | AC58: 0.685 | AD58: -0.37834 | AE58: -0.30562 | AF58: 0.07272 | AG58: 0.07272 | AH58: 0.0053
A59: 0.78 | B59: -0.24846 | C59: -0.22000 | D59: 0.02846 | E59: 0.02846 | F59: 0.0008 | H59: 0.808 | I59: -0.21319 | J59: -0.25837 | K59: -0.04517 | L59: 0.04517 | M59: 0.0020 | O59: 0.78 | P59: -0.24846 | Q59: -0.22561 | R59: 0.02285 | S59: 0.02285 | T59: 0.0005 | V59: 0.692 | W59: -0.36817 | X59: -0.36922 | Y59: -0.00105 | Z59: 0.00105 | AA59: 0.0000 | AC59: 0.692 | AD59: -0.36817 | AE59: -0.29920 | AF59: 0.06896 | AG59: 0.06896 | AH59: 0.0048
A60: 0.785 | B60: -0.24207 | C60: -0.21500 | D60: 0.02707 | E60: 0.02707 | F60: 0.0007 | H60: 0.8135 | I60: -0.20641 | J60: -0.25194 | K60: -0.04553 | L60: 0.04553 | M60: 0.0021 | O60: 0.785 | P60: -0.24207 | Q60: -0.21979 | R60: 0.02228 | S60: 0.02228 | T60: 0.0005 | V60: 0.699 | W60: -0.35810 | X60: -0.35916 | Y60: -0.00106 | Z60: 0.00106 | AA60: 0.0000 | AC60: 0.699 | AD60: -0.35810 | AE60: -0.29277 | AF60: 0.06534 | AG60: 0.06534 | AH60: 0.0043
A61: 0.79 | B61: -0.23572 | C61: -0.21000 | D61: 0.02572 | E61: 0.02572 | F61: 0.0007 | H61: 0.819 | I61: -0.19967 | J61: -0.24553 | K61: -0.04586 | L61: 0.04586 | M61: 0.0021 | O61: 0.79 | P61: -0.23572 | Q61: -0.21401 | R61: 0.02171 | S61: 0.02171 | T61: 0.0005 | V61: 0.706 | W61: -0.34814 | X61: -0.34920 | Y61: -0.00106 | Z61: 0.00106 | AA61: 0.0000 | AC61: 0.706 | AD61: -0.34814 | AE61: -0.28631 | AF61: 0.06183 | AG61: 0.06183 | AH61: 0.0038
A62: 0.795 | B62: -0.22941 | C62: -0.20500 | D62: 0.02441 | E62: 0.02441 | F62: 0.0006 | H62: 0.8245 | I62: -0.19298 | J62: -0.23915 | K62: -0.04617 | L62: 0.04617 | M62: 0.0021 | O62: 0.795 | P62: -0.22941 | Q62: -0.20827 | R62: 0.02114 | S62: 0.02114 | T62: 0.0004 | V62: 0.713 | W62: -0.33827 | X62: -0.33933 | Y62: -0.00106 | Z62: 0.00106 | AA62: 0.0000 | AC62: 0.713 | AD62: -0.33827 | AE62: -0.27982 | AF62: 0.05845 | AG62: 0.05845 | AH62: 0.0034
A63: 0.8 | B63: -0.22314 | C63: -0.20000 | D63: 0.02314 | E63: 0.02314 | F63: 0.0005 | H63: 0.83 | I63: -0.18633 | J63: -0.23280 | K63: -0.04647 | L63: 0.04647 | M63: 0.0022 | O63: 0.8 | P63: -0.22314 | Q63: -0.20256 | R63: 0.02058 | S63: 0.02058 | T63: 0.0004 | V63: 0.72 | W63: -0.32850 | X63: -0.32955 | Y63: -0.00104 | Z63: 0.00104 | AA63: 0.0000 | AC63: 0.72 | AD63: -0.32850 | AE63: -0.27332 | AF63: 0.05518 | AG63: 0.05518 | AH63: 0.0030
A64: 0.805 | B64: -0.21691 | C64: -0.19500 | D64: 0.02191 | E64: 0.02191 | F64: 0.0005 | H64: 0.8355 | I64: -0.17972 | J64: -0.22647 | K64: -0.04675 | L64: 0.04675 | M64: 0.0022 | O64: 0.805 | P64: -0.21691 | Q64: -0.19689 | R64: 0.02003 | S64: 0.02003 | T64: 0.0004 | V64: 0.727 | W64: -0.31883 | X64: -0.31986 | Y64: -0.00103 | Z64: 0.00103 | AA64: 0.0000 | AC64: 0.727 | AD64: -0.31883 | AE64: -0.26679 | AF64: 0.05204 | AG64: 0.05204 | AH64: 0.0027
A65: 0.81 | B65: -0.21072 | C65: -0.19000 | D65: 0.02072 | E65: 0.02072 | F65: 0.0004 | H65: 0.841 | I65: -0.17316 | J65: -0.22017 | K65: -0.04701 | L65: 0.04701 | M65: 0.0022 | O65: 0.81 | P65: -0.21072 | Q65: -0.19124 | R65: 0.01948 | S65: 0.01948 | T65: 0.0004 | V65: 0.734 | W65: -0.30925 | X65: -0.31026 | Y65: -0.00101 | Z65: 0.00101 | AA65: 0.0000 | AC65: 0.734 | AD65: -0.30925 | AE65: -0.26024 | AF65: 0.04900 | AG65: 0.04900 | AH65: 0.0024
A66: 0.815 | B66: -0.20457 | C66: -0.18500 | D66: 0.01957 | E66: 0.01957 | F66: 0.0004 | H66: 0.8465 | I66: -0.16665 | J66: -0.21390 | K66: -0.04725 | L66: 0.04725 | M66: 0.0022 | O66: 0.815 | P66: -0.20457 | Q66: -0.18564 | R66: 0.01893 | S66: 0.01893 | T66: 0.0004 | V66: 0.741 | W66: -0.29975 | X66: -0.30074 | Y66: -0.00099 | Z66: 0.00099 | AA66: 0.0000 | AC66: 0.741 | AD66: -0.29975 | AE66: -0.25367 | AF66: 0.04608 | AG66: 0.04608 | AH66: 0.0021
A67: 0.82 | B67: -0.19845 | C67: =aa00+bb00*(A67-1) -> -0.18000 | D67: 0.01845 | E67: 0.01845 | F67: 0.0003 | H67: 0.852 | I67: =LN(H67) -> -0.16017 | J67: =a0+b0*(A67-1)+c0*(A67-1)^2 -> -0.20765 | K67: -0.04748 | L67: 0.04748 | M67: 0.0023 | O67: 0.82 | P67: =LN(O67) -> -0.19845 | Q67: =a00+b00*(O67-1)+c00*(O67-1)^2+d00*(O67-1)^3 -> -0.18007 | R67: 0.01838 | S67: 0.01838 | T67: 0.0003 | V67: 0.748 | W67: =LN(V67) -> -0.29035 | X67: =a000+b000*(V67-1)+c000*(V67-1)^2+d000*(V67-1)^3+e000*(V67-1)^4 -> -0.29131 | Y67: -0.00096 | Z67: 0.00096 | AA67: 0.0000 | AC67: 0.748 | AD67: =LN(AC67) -> -0.29035 | AE67: =a0000+b0000*(AC67-1)+c0000*(AC67-1)^2+d0000*(AC67-1)^3+e0000*(AC67-1)^4+f0000*(AC67-1)^5 -> -0.24708 | AF67: 0.04327 | AG67: 0.04327 | AH67: 0.0019
A68: =A67+(bb0-aa0)/200 -> 0.825 | B68: =LN(A68) -> -0.19237 | C68: -0.17500 | D68: =C68-B68 -> 0.01737 | E68: =ABS(D68) -> 0.01737 | F68: =D68^2 -> 0.0003 | H68: =H67+(b-a)/200 -> 0.8575 | I68: -0.15373 | J68: -0.20143 | K68: =J68-I68 -> -0.04769 | L68: =ABS(K68) -> 0.04769 | M68: =K68^2 -> 0.0023 | O68: =O67+(bb-aa)/200 -> 0.825 | P68: -0.19237 | Q68: -0.17453 | R68: =Q68-P68 -> 0.01784 | S68: =ABS(R68) -> 0.01784 | T68: =R68^2 -> 0.0003 | V68: =V67+(bbb-aaa)/200 -> 0.755 | W68: -0.28104 | X68: -0.28197 | Y68: =X68-W68 -> -0.00093 | Z68: =ABS(Y68) -> 0.00093 | AA68: =Y68^2 -> 0.0000 | AC68: =AC67+(bbbb-aaaa)/200 -> 0.755 | AD68: -0.28104 | AE68: -0.24047 | AF68: =AE68-AD68 -> 0.04057 | AG68: =ABS(AF68) -> 0.04057 | AH68: =AF68^2 -> 0.0016
A69: 0.83 | B69: -0.18633 | C69: -0.17000 | D69: 0.01633 | E69: 0.01633 | F69: 0.0003 | H69: 0.863 | I69: -0.14734 | J69: -0.19523 | K69: -0.04789 | L69: 0.04789 | M69: 0.0023 | O69: 0.83 | P69: -0.18633 | Q69: -0.16902 | R69: 0.01731 | S69: 0.01731 | T69: 0.0003 | V69: 0.762 | W69: -0.27181 | X69: -0.27271 | Y69: -0.00090 | Z69: 0.00090 | AA69: 0.0000 | AC69: 0.762 | AD69: -0.27181 | AE69: -0.23384 | AF69: 0.03797 | AG69: 0.03797 | AH69: 0.0014
A70: 0.835 | B70: -0.18032 | C70: -0.16500 | D70: 0.01532 | E70: 0.01532 | F70: 0.0002 | H70: 0.8685 | I70: -0.14099 | J70: -0.18906 | K70: -0.04807 | L70: 0.04807 | M70: 0.0023 | O70: 0.835 | P70: -0.18032 | Q70: -0.16355 | R70: 0.01677 | S70: 0.01677 | T70: 0.0003 | V70: 0.769 | W70: -0.26266 | X70: -0.26353 | Y70: -0.00086 | Z70: 0.00086 | AA70: 0.0000 | AC70: 0.769 | AD70: -0.26266 | AE70: -0.22719 | AF70: 0.03548 | AG70: 0.03548 | AH70: 0.0013
A71: 0.84 | B71: -0.17435 | C71: -0.16000 | D71: 0.01435 | E71: 0.01435 | F71: 0.0002 | H71: 0.874 | I71: -0.13467 | J71: -0.18291 | K71: -0.04824 | L71: 0.04824 | M71: 0.0023 | O71: 0.84 | P71: -0.17435 | Q71: -0.15811 | R71: 0.01624 | S71: 0.01624 | T71: 0.0003 | V71: 0.776 | W71: -0.25360 | X71: -0.25443 | Y71: -0.00083 | Z71: 0.00083 | AA71: 0.0000 | AC71: 0.776 | AD71: -0.25360 | AE71: -0.22052 | AF71: 0.03309 | AG71: 0.03309 | AH71: 0.0011
A72: 0.845 | B72: -0.16842 | C72: -0.15500 | D72: 0.01342 | E72: 0.01342 | F72: 0.0002 | H72: 0.8795 | I72: -0.12840 | J72: -0.17679 | K72: -0.04839 | L72: 0.04839 | M72: 0.0023 | O72: 0.845 | P72: -0.16842 | Q72: -0.15270 | R72: 0.01571 | S72: 0.01571 | T72: 0.0002 | V72: 0.783 | W72: -0.24462 | X72: -0.24541 | Y72: -0.00079 | Z72: 0.00079 | AA72: 0.0000 | AC72: 0.783 | AD72: -0.24462 | AE72: -0.21383 | AF72: 0.03080 | AG72: 0.03080 | AH72: 0.0009
A73: 0.85 | B73: -0.16252 | C73: -0.15000 | D73: 0.01252 | E73: 0.01252 | F73: 0.0002 | H73: 0.885 | I73: -0.12217 | J73: -0.17070 | K73: -0.04853 | L73: 0.04853 | M73: 0.0024 | O73: 0.85 | P73: -0.16252 | Q73: -0.14733 | R73: 0.01519 | S73: 0.01519 | T73: 0.0002 | V73: 0.79 | W73: -0.23572 | X73: -0.23647 | Y73: -0.00075 | Z73: 0.00075 | AA73: 0.0000 | AC73: 0.79 | AD73: -0.23572 | AE73: -0.20712 | AF73: 0.02860 | AG73: 0.02860 | AH73: 0.0008
A74: 0.855 | B74: -0.15665 | C74: -0.14500 | D74: 0.01165 | E74: 0.01165 | F74: 0.0001 | H74: 0.8905 | I74: -0.11597 | J74: -0.16463 | K74: -0.04866 | L74: 0.04866 | M74: 0.0024 | O74: 0.855 | P74: -0.15665 | Q74: -0.14199 | R74: 0.01467 | S74: 0.01467 | T74: 0.0002 | V74: 0.797 | W74: -0.22690 | X74: -0.22761 | Y74: -0.00071 | Z74: 0.00071 | AA74: 0.0000 | AC74: 0.797 | AD74: -0.22690 | AE74: -0.20039 | AF74: 0.02651 | AG74: 0.02651 | AH74: 0.0007
A75: 0.86 | B75: -0.15082 | C75: -0.14000 | D75: 0.01082 | E75: 0.01082 | F75: 0.0001 | H75: 0.896 | I75: -0.10981 | J75: -0.15859 | K75: -0.04878 | L75: 0.04878 | M75: 0.0024 | O75: 0.86 | P75: -0.15082 | Q75: -0.13668 | R75: 0.01414 | S75: 0.01414 | T75: 0.0002 | V75: 0.804 | W75: -0.21816 | X75: -0.21883 | Y75: -0.00067 | Z75: 0.00067 | AA75: 0.0000 | AC75: 0.804 | AD75: -0.21816 | AE75: -0.19365 | AF75: 0.02451 | AG75: 0.02451 | AH75: 0.0006
A76: 0.865 | B76: -0.14503 | C76: -0.13500 | D76: 0.01003 | E76: 0.01003 | F76: 0.0001 | H76: 0.9015 | I76: -0.10370 | J76: -0.15258 | K76: -0.04888 | L76: 0.04888 | M76: 0.0024 | O76: 0.865 | P76: -0.14503 | Q76: -0.13140 | R76: 0.01363 | S76: 0.01363 | T76: 0.0002 | V76: 0.811 | W76: -0.20949 | X76: -0.21012 | Y76: -0.00063 | Z76: 0.00063 | AA76: 0.0000 | AC76: 0.811 | AD76: -0.20949 | AE76: -0.18689 | AF76: 0.02260 | AG76: 0.02260 | AH76: 0.0005
A77: 0.87 | B77: -0.13926 | C77: -0.13000 | D77: 0.00926 | E77: 0.00926 | F77: 0.0001 | H77: 0.907 | I77: -0.09761 | J77: -0.14659 | K77: -0.04898 | L77: 0.04898 | M77: 0.0024 | O77: 0.87 | P77: -0.13926 | Q77: -0.12615 | R77: 0.01311 | S77: 0.01311 | T77: 0.0002 | V77: 0.818 | W77: -0.20089 | X77: -0.20149 | Y77: -0.00060 | Z77: 0.00060 | AA77: 0.0000 | AC77: 0.818 | AD77: -0.20089 | AE77: -0.18011 | AF77: 0.02078 | AG77: 0.02078 | AH77: 0.0004
A78: 0.875 | B78: -0.13353 | C78: -0.12500 | D78: 0.00853 | E78: 0.00853 | F78: 0.0001 | H78: 0.9125 | I78: -0.09157 | J78: -0.14063 | K78: -0.04906 | L78: 0.04906 | M78: 0.0024 | O78: 0.875 | P78: -0.13353 | Q78: -0.12094 | R78: 0.01259 | S78: 0.01259 | T78: 0.0002 | V78: 0.825 | W78: -0.19237 | X78: -0.19293 | Y78: -0.00056 | Z78: 0.00056 | AA78: 0.0000 | AC78: 0.825 | AD78: -0.19237 | AE78: -0.17332 | AF78: 0.01905 | AG78: 0.01905 | AH78: 0.0004
A79: 0.88 | B79: -0.12783 | C79: -0.12000 | D79: 0.00783 | E79: 0.00783 | F79: 0.0001 | H79: 0.918 | I79: -0.08556 | J79: -0.13469 | K79: -0.04913 | L79: 0.04913 | M79: 0.0024 | O79: 0.88 | P79: -0.12783 | Q79: -0.11575 | R79: 0.01208 | S79: 0.01208 | T79: 0.0001 | V79: 0.832 | W79: -0.18392 | X79: -0.18444 | Y79: -0.00052 | Z79: 0.00052 | AA79: 0.0000 | AC79: 0.832 | AD79: -0.18392 | AE79: -0.16651 | AF79: 0.01741 | AG79: 0.01741 | AH79: 0.0003
A80: 0.885 | B80: -0.12217 | C80: -0.11500 | D80: 0.00717 | E80: 0.00717 | F80: 0.0001 | H80: 0.9235 | I80: -0.07958 | J80: -0.12878 | K80: -0.04919 | L80: 0.04919 | M80: 0.0024 | O80: 0.885 | P80: -0.12217 | Q80: -0.11060 | R80: 0.01157 | S80: 0.01157 | T80: 0.0001 | V80: 0.839 | W80: -0.17554 | X80: -0.17602 | Y80: -0.00048 | Z80: 0.00048 | AA80: 0.0000 | AC80: 0.839 | AD80: -0.17554 | AE80: -0.15969 | AF80: 0.01586 | AG80: 0.01586 | AH80: 0.0003
A81: 0.89 | B81: -0.11653 | C81: -0.11000 | D81: 0.00653 | E81: 0.00653 | F81: 0.0000 | H81: 0.929 | I81: -0.07365 | J81: -0.12289 | K81: -0.04925 | L81: 0.04925 | M81: 0.0024 | O81: 0.89 | P81: -0.11653 | Q81: -0.10548 | R81: 0.01106 | S81: 0.01106 | T81: 0.0001 | V81: 0.846 | W81: -0.16724 | X81: -0.16768 | Y81: -0.00044 | Z81: 0.00044 | AA81: 0.0000 | AC81: 0.846 | AD81: -0.16724 | AE81: -0.15285 | AF81: 0.01439 | AG81: 0.01439 | AH81: 0.0002
A82: 0.895 | B82: -0.11093 | C82: -0.10500 | D82: 0.00593 | E82: 0.00593 | F82: 0.0000 | H82: 0.9345 | I82: -0.06774 | J82: -0.11703 | K82: -0.04929 | L82: 0.04929 | M82: 0.0024 | O82: 0.895 | P82: -0.11093 | Q82: -0.10038 | R82: 0.01055 | S82: 0.01055 | T82: 0.0001 | V82: 0.853 | W82: -0.15900 | X82: -0.15940 | Y82: -0.00041 | Z82: 0.00041 | AA82: 0.0000 | AC82: 0.853 | AD82: -0.15900 | AE82: -0.14600 | AF82: 0.01300 | AG82: 0.01300 | AH82: 0.0002
A83: 0.9 | B83: -0.10536 | C83: -0.10000 | D83: 0.00536 | E83: 0.00536 | F83: 0.0000 | H83: 0.94 | I83: -0.06188 | J83: -0.11120 | K83: -0.04932 | L83: 0.04932 | M83: 0.0024 | O83: 0.9 | P83: -0.10536 | Q83: -0.09532 | R83: 0.01004 | S83: 0.01004 | T83: 0.0001 | V83: 0.86 | W83: -0.15082 | X83: -0.15119 | Y83: -0.00037 | Z83: 0.00037 | AA83: 0.0000 | AC83: 0.86 | AD83: -0.15082 | AE83: -0.13913 | AF83: 0.01169 | AG83: 0.01169 | AH83: 0.0001
A84: 0.905 | B84: -0.09982 | C84: -0.09500 | D84: 0.00482 | E84: 0.00482 | F84: 0.0000 | H84: 0.9455 | I84: -0.05604 | J84: -0.10539 | K84: -0.04935 | L84: 0.04935 | M84: 0.0024 | O84: 0.905 | P84: -0.09982 | Q84: -0.09029 | R84: 0.00953 | S84: 0.00953 | T84: 0.0001 | V84: 0.867 | W84: -0.14272 | X84: -0.14305 | Y84: -0.00034 | Z84: 0.00034 | AA84: 0.0000 | AC84: 0.867 | AD84: -0.14272 | AE84: -0.13226 | AF84: 0.01046 | AG84: 0.01046 | AH84: 0.0001
A85: 0.91 | B85: -0.09431 | C85: -0.09000 | D85: 0.00431 | E85: 0.00431 | F85: 0.0000 | H85: 0.951 | I85: -0.05024 | J85: -0.09961 | K85: -0.04937 | L85: 0.04937 | M85: 0.0024 | O85: 0.91 | P85: -0.09431 | Q85: -0.08528 | R85: 0.00903 | S85: 0.00903 | T85: 0.0001 | V85: 0.874 | W85: -0.13467 | X85: -0.13498 | Y85: -0.00030 | Z85: 0.00030 | AA85: 0.0000 | AC85: 0.874 | AD85: -0.13467 | AE85: -0.12537 | AF85: 0.00931 | AG85: 0.00931 | AH85: 0.0001
A86: 0.915 | B86: -0.08883 | C86: -0.08500 | D86: 0.00383 | E86: 0.00383 | F86: 0.0000 | H86: 0.9565 | I86: -0.04447 | J86: -0.09386 | K86: -0.04938 | L86: 0.04938 | M86: 0.0024 | O86: 0.915 | P86: -0.08883 | Q86: -0.08031 | R86: 0.00852 | S86: 0.00852 | T86: 0.0001 | V86: 0.881 | W86: -0.12670 | X86: -0.12697 | Y86: -0.00027 | Z86: 0.00027 | AA86: 0.0000 | AC86: 0.881 | AD86: -0.12670 | AE86: -0.11847 | AF86: 0.00823 | AG86: 0.00823 | AH86: 0.0001
A87: 0.92 | B87: -0.08338 | C87: -0.08000 | D87: 0.00338 | E87: 0.00338 | F87: 0.0000 | H87: 0.962 | I87: -0.03874 | J87: -0.08813 | K87: -0.04939 | L87: 0.04939 | M87: 0.0024 | O87: 0.92 | P87: -0.08338 | Q87: -0.07536 | R87: 0.00802 | S87: 0.00802 | T87: 0.0001 | V87: 0.888 | W87: -0.11878 | X87: -0.11903 | Y87: -0.00024 | Z87: 0.00024 | AA87: 0.0000 | AC87: 0.888 | AD87: -0.11878 | AE87: -0.11155 | AF87: 0.00723 | AG87: 0.00723 | AH87: 0.0001
A88: 0.925 | B88: -0.07796 | C88: -0.07500 | D88: 0.00296 | E88: 0.00296 | F88: 0.0000 | H88: 0.9675 | I88: -0.03304 | J88: -0.08242 | K88: -0.04939 | L88: 0.04939 | M88: 0.0024 | O88: 0.925 | P88: -0.07796 | Q88: -0.07045 | R88: 0.00751 | S88: 0.00751 | T88: 0.0001 | V88: 0.895 | W88: -0.11093 | X88: -0.11115 | Y88: -0.00021 | Z88: 0.00021 | AA88: 0.0000 | AC88: 0.895 | AD88: -0.11093 | AE88: -0.10463 | AF88: 0.00630 | AG88: 0.00630 | AH88: 0.0000
A89: 0.93 | B89: -0.07257 | C89: -0.07000 | D89: 0.00257 | E89: 0.00257 | F89: 0.0000 | H89: 0.973 | I89: -0.02737 | J89: -0.07675 | K89: -0.04938 | L89: 0.04938 | M89: 0.0024 | O89: 0.93 | P89: -0.07257 | Q89: -0.06556 | R89: 0.00701 | S89: 0.00701 | T89: 0.0000 | V89: 0.902 | W89: -0.10314 | X89: -0.10333 | Y89: -0.00019 | Z89: 0.00019 | AA89: 0.0000 | AC89: 0.902 | AD89: -0.10314 | AE89: -0.09770 | AF89: 0.00544 | AG89: 0.00544 | AH89: 0.0000
A90: 0.935 | B90: -0.06721 | C90: -0.06500 | D90: 0.00221 | E90: 0.00221 | F90: 0.0000 | H90: 0.9785 | I90: -0.02173 | J90: -0.07110 | K90: -0.04936 | L90: 0.04936 | M90: 0.0024 | O90: 0.935 | P90: -0.06721 | Q90: -0.06070 | R90: 0.00651 | S90: 0.00651 | T90: 0.0000 | V90: 0.909 | W90: -0.09541 | X90: -0.09557 | Y90: -0.00016 | Z90: 0.00016 | AA90: 0.0000 | AC90: 0.909 | AD90: -0.09541 | AE90: -0.09076 | AF90: 0.00465 | AG90: 0.00465 | AH90: 0.0000
A91: 0.94 | B91: -0.06188 | C91: -0.06000 | D91: 0.00188 | E91: 0.00188 | F91: 0.0000 | H91: 0.984 | I91: -0.01613 | J91: -0.06547 | K91: -0.04934 | L91: 0.04934 | M91: 0.0024 | O91: 0.94 | P91: -0.06188 | Q91: -0.05587 | R91: 0.00601 | S91: 0.00601 | T91: 0.0000 | V91: 0.916 | W91: -0.08774 | X91: -0.08788 | Y91: -0.00014 | Z91: 0.00014 | AA91: 0.0000 | AC91: 0.916 | AD91: -0.08774 | AE91: -0.08381 | AF91: 0.00393 | AG91: 0.00393 | AH91: 0.0000
A92: 0.945 | B92: -0.05657 | C92: -0.05500 | D92: 0.00157 | E92: 0.00157 | F92: 0.0000 | H92: 0.9895 | I92: -0.01056 | J92: -0.05987 | K92: -0.04932 | L92: 0.04932 | M92: 0.0024 | O92: 0.945 | P92: -0.05657 | Q92: -0.05107 | R92: 0.00550 | S92: 0.00550 | T92: 0.0000 | V92: 0.923 | W92: -0.08013 | X92: -0.08024 | Y92: -0.00012 | Z92: 0.00012 | AA92: 0.0000 | AC92: 0.923 | AD92: -0.08013 | AE92: -0.07685 | AF92: 0.00327 | AG92: 0.00327 | AH92: 0.0000
A93: 0.95 | B93: -0.05129 | C93: -0.05000 | D93: 0.00129 | E93: 0.00129 | F93: 0.0000 | H93: 0.995 | I93: -0.00501 | J93: -0.05430 | K93: -0.04929 | L93: 0.04929 | M93: 0.0024 | O93: 0.95 | P93: -0.05129 | Q93: -0.04629 | R93: 0.00500 | S93: 0.00500 | T93: 0.0000 | V93: 0.93 | W93: -0.07257 | X93: -0.07267 | Y93: -0.00010 | Z93: 0.00010 | AA93: 0.0000 | AC93: 0.93 | AD93: -0.07257 | AE93: -0.06989 | AF93: 0.00268 | AG93: 0.00268 | AH93: 0.0000
A94: 0.955 | B94: -0.04604 | C94: -0.04500 | D94: 0.00104 | E94: 0.00104 | F94: 0.0000 | H94: 1.0005 | I94: 0.00050 | J94: -0.04875 | K94: -0.04925 | L94: 0.04925 | M94: 0.0024 | O94: 0.955 | P94: -0.04604 | Q94: -0.04154 | R94: 0.00450 | S94: 0.00450 | T94: 0.0000 | V94: 0.937 | W94: -0.06507 | X94: -0.06515 | Y94: -0.00008 | Z94: 0.00008 | AA94: 0.0000 | AC94: 0.937 | AD94: -0.06507 | AE94: -0.06292 | AF94: 0.00215 | AG94: 0.00215 | AH94: 0.0000
A95: 0.96 | B95: -0.04082 | C95: -0.04000 | D95: 0.00082 | E95: 0.00082 | F95: 0.0000 | H95: 1.006 | I95: 0.00598 | J95: -0.04323 | K95: -0.04921 | L95: 0.04921 | M95: 0.0024 | O95: 0.96 | P95: -0.04082 | Q95: -0.03682 | R95: 0.00400 | S95: 0.00400 | T95: 0.0000 | V95: 0.944 | W95: -0.05763 | X95: -0.05769 | Y95: -0.00006 | Z95: 0.00006 | AA95: 0.0000 | AC95: 0.944 | AD95: -0.05763 | AE95: -0.05594 | AF95: 0.00169 | AG95: 0.00169 | AH95: 0.0000
A96: 0.965 | B96: -0.03563 | C96: -0.03500 | D96: 0.00063 | E96: 0.00063 | F96: 0.0000 | H96: 1.0115 | I96: 0.01143 | J96: -0.03774 | K96: -0.04917 | L96: 0.04917 | M96: 0.0024 | O96: 0.965 | P96: -0.03563 | Q96: -0.03213 | R96: 0.00350 | S96: 0.00350 | T96: 0.0000 | V96: 0.951 | W96: -0.05024 | X96: -0.05029 | Y96: -0.00005 | Z96: 0.00005 | AA96: 0.0000 | AC96: 0.951 | AD96: -0.05024 | AE96: -0.04896 | AF96: 0.00128 | AG96: 0.00128 | AH96: 0.0000
A97: 0.97 | B97: -0.03046 | C97: -0.03000 | D97: 0.00046 | E97: 0.00046 | F97: 0.0000 | H97: 1.017 | I97: 0.01686 | J97: -0.03227 | K97: -0.04913 | L97: 0.04913 | M97: 0.0024 | O97: 0.97 | P97: -0.03046 | Q97: -0.02746 | R97: 0.00300 | S97: 0.00300 | T97: 0.0000 | V97: 0.958 | W97: -0.04291 | X97: -0.04294 | Y97: -0.00004 | Z97: 0.00004 | AA97: 0.0000 | AC97: 0.958 | AD97: -0.04291 | AE97: -0.04198 | AF97: 0.00093 | AG97: 0.00093 | AH97: 0.0000
A98: 0.975 | B98: -0.02532 | C98: -0.02500 | D98: 0.00032 | E98: 0.00032 | F98: 0.0000 | H98: 1.0225 | I98: 0.02225 | J98: -0.02682 | K98: -0.04908 | L98: 0.04908 | M98: 0.0024 | O98: 0.975 | P98: -0.02532 | Q98: -0.02282 | R98: 0.00250 | S98: 0.00250 | T98: 0.0000 | V98: 0.965 | W98: -0.03563 | X98: -0.03565 | Y98: -0.00002 | Z98: 0.00002 | AA98: 0.0000 | AC98: 0.965 | AD98: -0.03563 | AE98: -0.03499 | AF98: 0.00064 | AG98: 0.00064 | AH98: 0.0000
A99: 0.98 | B99: -0.02020 | C99: -0.02000 | D99: 0.00020 | E99: 0.00020 | F99: 0.0000 | H99: 1.028 | I99: 0.02762 | J99: -0.02141 | K99: -0.04902 | L99: 0.04902 | M99: 0.0024 | O99: 0.98 | P99: -0.02020 | Q99: -0.01820 | R99: 0.00200 | S99: 0.00200 | T99: 0.0000 | V99: 0.972 | W99: -0.02840 | X99: -0.02842 | Y99: -0.00002 | Z99: 0.00002 | AA99: 0.0000 | AC99: 0.972 | AD99: -0.02840 | AE99: -0.02799 | AF99: 0.00041 | AG99: 0.00041 | AH99: 0.0000
A100: =A99+(bb0-aa0)/200 -> 0.985 | B100: -0.01511 | C100: -0.01500 | D100: 0.00011 | E100: 0.00011 | F100: 0.0000 | H100: 1.0335 | I100: 0.03295 | J100: -0.01602 | K100: -0.04897 | L100: 0.04897 | M100: 0.0024 | O100: =O99+(bb-aa)/200 -> 0.985 | P100: -0.01511 | Q100: -0.01361 | R100: 0.00150 | S100: 0.00150 | T100: 0.0000 | V100: =V99+(bbb-aaa)/200 -> 0.979 | W100: -0.02122 | X100: -0.02123 | Y100: -0.00001 | Z100: 0.00001 | AA100: 0.0000 | AC100: =AC99+(bbbb-aaaa)/200 -> 0.979 | AD100: -0.02122 | AE100: -0.02100 | AF100: 0.00023 | AG100: 0.00023 | AH100: 0.0000
A101: 0.99 | B101: -0.01005 | C101: -0.01000 | D101: 0.00005 | E101: 0.00005 | F101: 0.0000 | H101: 1.039 | I101: 0.03826 | J101: -0.01065 | K101: -0.04891 | L101: 0.04891 | M101: 0.0024 | O101: 0.99 | P101: -0.01005 | Q101: -0.00905 | R101: 0.00100 | S101: 0.00100 | T101: 0.0000 | V101: 0.986 | W101: -0.01410 | X101: -0.01410 | Y101: -0.00000 | Z101: 0.00000 | AA101: 0.0000 | AC101: 0.986 | AD101: -0.01410 | AE101: -0.01400 | AF101: 0.00010 | AG101: 0.00010 | AH101: 0.0000
A102: 0.995 | B102: -0.00501 | C102: -0.00500 | D102: 0.00001 | E102: 0.00001 | F102: 0.0000 | H102: 1.0445 | I102: 0.04354 | J102: -0.00531 | K102: -0.04885 | L102: 0.04885 | M102: 0.0024 | O102: 0.995 | P102: -0.00501 | Q102: -0.00451 | R102: 0.00050 | S102: 0.00050 | T102: 0.0000 | V102: 0.993 | W102: -0.00702 | X102: -0.00703 | Y102: -0.00000 | Z102: 0.00000 | AA102: 0.0000 | AC102: 0.993 | AD102: -0.00702 | AE102: -0.00700 | AF102: 0.00002 | AG102: 0.00002 | AH102: 0.0000
A103: 1 | B103: 0.00000 | C103: 0.00000 | D103: 0.00000 | E103: 0.00000 | F103: 0.0000 | H103: 1.05 | I103: 0.04879 | J103: 0.00000 | K103: -0.04879 | L103: 0.04879 | M103: 0.0024 | O103: 1 | P103: 0.00000 | Q103: 0.00000 | R103: -0.00000 | S103: 0.00000 | T103: 0.0000 | V103: 1 | W103: 0.00000 | X103: 0.00000 | Y103: 0.00000 | Z103: 0.00000 | AA103: 0.0000 | AC103: 1 | AD103: 0.00000 | AE103: 0.00000 | AF103: 0.00000 | AG103: 0.00000 | AH103: 0.0000
A104: 1.005 | B104: 0.00499 | C104: 0.00500 | D104: 0.00001 | E104: 0.00001 | F104: 0.0000 | H104: 1.0555 | I104: 0.05401 | J104: 0.00529 | K104: -0.04873 | L104: 0.04873 | M104: 0.0024 | O104: 1.005 | P104: 0.00499 | Q104: 0.00449 | R104: -0.00050 | S104: 0.00050 | T104: 0.0000 | V104: 1.007 | W104: 0.00698 | X104: 0.00697 | Y104: -0.00000 | Z104: 0.00000 | AA104: 0.0000 | AC104: 1.007 | AD104: 0.00698 | AE104: 0.00700 | AF104: 0.00002 | AG104: 0.00002 | AH104: 0.0000
A105: 1.01 | B105: 0.00995 | C105: 0.01000 | D105: 0.00005 | E105: 0.00005 | F105: 0.0000 | H105: 1.061 | I105: 0.05921 | J105: 0.01055 | K105: -0.04866 | L105: 0.04866 | M105: 0.0024 | O105: 1.01 | P105: 0.00995 | Q105: 0.00895 | R105: -0.00100 | S105: 0.00100 | T105: 0.0000 | V105: 1.014 | W105: 0.01390 | X105: 0.01390 | Y105: -0.00000 | Z105: 0.00000 | AA105: 0.0000 | AC105: 1.014 | AD105: 0.01390 | AE105: 0.01400 | AF105: 0.00010 | AG105: 0.00010 | AH105: 0.0000
A106: 1.015 | B106: 0.01489 | C106: 0.01500 | D106: 0.00011 | E106: 0.00011 | F106: 0.0000 | H106: 1.0665 | I106: 0.06438 | J106: 0.01578 | K106: -0.04860 | L106: 0.04860 | M106: 0.0024 | O106: 1.015 | P106: 0.01489 | Q106: 0.01339 | R106: -0.00150 | S106: 0.00150 | T106: 0.0000 | V106: 1.021 | W106: 0.02078 | X106: 0.02077 | Y106: -0.00001 | Z106: 0.00001 | AA106: 0.0000 | AC106: 1.021 | AD106: 0.02078 | AE106: 0.02100 | AF106: 0.00021 | AG106: 0.00021 | AH106: 0.0000
A107: 1.02 | B107: 0.01980 | C107: 0.02000 | D107: 0.00020 | E107: 0.00020 | F107: 0.0000 | H107: 1.072 | I107: 0.06953 | J107: 0.02099 | K107: -0.04853 | L107: 0.04853 | M107: 0.0024 | O107: 1.02 | P107: 0.01980 | Q107: 0.01780 | R107: -0.00200 | S107: 0.00200 | T107: 0.0000 | V107: 1.028 | W107: 0.02762 | X107: 0.02760 | Y107: -0.00002 | Z107: 0.00002 | AA107: 0.0000 | AC107: 1.028 | AD107: 0.02762 | AE107: 0.02799 | AF107: 0.00038 | AG107: 0.00038 | AH107: 0.0000
A108: 1.025 | B108: 0.02469 | C108: 0.02500 | D108: 0.00031 | E108: 0.00031 | F108: 0.0000 | H108: 1.0775 | I108: 0.07464 | J108: 0.02617 | K108: -0.04847 | L108: 0.04847 | M108: 0.0023 | O108: 1.025 | P108: 0.02469 | Q108: 0.02219 | R108: -0.00250 | S108: 0.00250 | T108: 0.0000 | V108: 1.035 | W108: 0.03440 | X108: 0.03438 | Y108: -0.00002 | Z108: 0.00002 | AA108: 0.0000 | AC108: 1.035 | AD108: 0.03440 | AE108: 0.03499 | AF108: 0.00058 | AG108: 0.00058 | AH108: 0.0000
A109: 1.03 | B109: 0.02956 | C109: 0.03000 | D109: 0.00044 | E109: 0.00044 | F109: 0.0000 | H109: 1.083 | I109: 0.07973 | J109: 0.03133 | K109: -0.04840 | L109: 0.04840 | M109: 0.0023 | O109: 1.03 | P109: 0.02956 | Q109: 0.02656 | R109: -0.00300 | S109: 0.00300 | T109: 0.0000 | V109: 1.042 | W109: 0.04114 | X109: 0.04111 | Y109: -0.00004 | Z109: 0.00004 | AA109: 0.0000 | AC109: 1.042 | AD109: 0.04114 | AE109: 0.04198 | AF109: 0.00083 | AG109: 0.00083 | AH109: 0.0000
A110: 1.035 | B110: 0.03440 | C110: 0.03500 | D110: 0.00060 | E110: 0.00060 | F110: 0.0000 | H110: 1.0885 | I110: 0.08480 | J110: 0.03646 | K110: -0.04834 | L110: 0.04834 | M110: 0.0023 | O110: 1.035 | P110: 0.03440 | Q110: 0.03090 | R110: -0.00350 | S110: 0.00350 | T110: 0.0000 | V110: 1.049 | W110: 0.04784 | X110: 0.04779 | Y110: -0.00005 | Z110: 0.00005 | AA110: 0.0000 | AC110: 1.049 | AD110: 0.04784 | AE110: 0.04896 | AF110: 0.00113 | AG110: 0.00113 | AH110: 0.0000
A111: 1.04 | B111: 0.03922 | C111: 0.04000 | D111: 0.00078 | E111: 0.00078 | F111: 0.0000 | H111: 1.094 | I111: 0.08984 | J111: 0.04157 | K111: -0.04827 | L111: 0.04827 | M111: 0.0023 | O111: 1.04 | P111: 0.03922 | Q111: 0.03522 | R111: -0.00400 | S111: 0.00400 | T111: 0.0000 | V111: 1.056 | W111: 0.05449 | X111: 0.05442 | Y111: -0.00006 | Z111: 0.00006 | AA111: 0.0000 | AC111: 1.056 | AD111: 0.05449 | AE111: 0.05594 | AF111: 0.00146 | AG111: 0.00146 | AH111: 0.0000
A112: 1.045 | B112: 0.04402 | C112: 0.04500 | D112: 0.00098 | E112: 0.00098 | F112: 0.0000 | H112: 1.0995 | I112: 0.09486 | J112: 0.04665 | K112: -0.04821 | L112: 0.04821 | M112: 0.0023 | O112: 1.045 | P112: 0.04402 | Q112: 0.03952 | R112: -0.00450 | S112: 0.00450 | T112: 0.0000 | V112: 1.063 | W112: 0.06110 | X112: 0.06101 | Y112: -0.00008 | Z112: 0.00008 | AA112: 0.0000 | AC112: 1.063 | AD112: 0.06110 | AE112: 0.06292 | AF112: 0.00183 | AG112: 0.00183 | AH112: 0.0000
A113: 1.05 | B113: 0.04879 | C113: 0.05000 | D113: 0.00121 | E113: 0.00121 | F113: 0.0000 | H113: 1.105 | I113: 0.09985 | J113: 0.05170 | K113: -0.04815 | L113: 0.04815 | M113: 0.0023 | O113: 1.05 | P113: 0.04879 | Q113: 0.04379 | R113: -0.00500 | S113: 0.00500 | T113: 0.0000 | V113: 1.07 | W113: 0.06766 | X113: 0.06756 | Y113: -0.00010 | Z113: 0.00010 | AA113: 0.0000 | AC113: 1.07 | AD113: 0.06766 | AE113: 0.06989 | AF113: 0.00223 | AG113: 0.00223 | AH113: 0.0000
A114: 1.055 | B114: 0.05354 | C114: 0.05500 | D114: 0.00146 | E114: 0.00146 | F114: 0.0000 | H114: 1.1105 | I114: 0.10481 | J114: 0.05673 | K114: -0.04808 | L114: 0.04808 | M114: 0.0023 | O114: 1.055 | P114: 0.05354 | Q114: 0.04804 | R114: -0.00550 | S114: 0.00550 | T114: 0.0000 | V114: 1.077 | W114: 0.07418 | X114: 0.07406 | Y114: -0.00012 | Z114: 0.00012 | AA114: 0.0000 | AC114: 1.077 | AD114: 0.07418 | AE114: 0.07685 | AF114: 0.00268 | AG114: 0.00268 | AH114: 0.0000
A115: 1.06 | B115: 0.05827 | C115: 0.06000 | D115: 0.00173 | E115: 0.00173 | F115: 0.0000 | H115: 1.116 | I115: 0.10975 | J115: 0.06173 | K115: -0.04802 | L115: 0.04802 | M115: 0.0023 | O115: 1.06 | P115: 0.05827 | Q115: 0.05227 | R115: -0.00600 | S115: 0.00600 | T115: 0.0000 | V115: 1.084 | W115: 0.08066 | X115: 0.08051 | Y115: -0.00014 | Z115: 0.00014 | AA115: 0.0000 | AC115: 1.084 | AD115: 0.08066 | AE115: 0.08381 | AF115: 0.00315 | AG115: 0.00315 | AH115: 0.0000
A116: 1.065 | B116: 0.06297 | C116: 0.06500 | D116: 0.00203 | E116: 0.00203 | F116: 0.0000 | H116: 1.1215 | I116: 0.11467 | J116: 0.06670 | K116: -0.04796 | L116: 0.04796 | M116: 0.0023 | O116: 1.065 | P116: 0.06297 | Q116: 0.05648 | R116: -0.00650 | S116: 0.00650 | T116: 0.0000 | V116: 1.091 | W116: 0.08709 | X116: 0.08693 | Y116: -0.00017 | Z116: 0.00017 | AA116: 0.0000 | AC116: 1.091 | AD116: 0.08709 | AE116: 0.09076 | AF116: 0.00367 | AG116: 0.00367 | AH116: 0.0000
A117: 1.07 | B117: 0.06766 | C117: 0.07000 | D117: 0.00234 | E117: 0.00234 | F117: 0.0000 | H117: 1.127 | I117: 0.11956 | J117: 0.07165 | K117: -0.04791 | L117: 0.04791 | M117: 0.0023 | O117: 1.07 | P117: 0.06766 | Q117: 0.06066 | R117: -0.00700 | S117: 0.00700 | T117: 0.0000 | V117: 1.098 | W117: 0.09349 | X117: 0.09329 | Y117: -0.00020 | Z117: 0.00020 | AA117: 0.0000 | AC117: 1.098 | AD117: 0.09349 | AE117: 0.09770 | AF117: 0.00421 | AG117: 0.00421 | AH117: 0.0000
A118: 1.075 | B118: 0.07232 | C118: 0.07500 | D118: 0.00268 | E118: 0.00268 | F118: 0.0000 | H118: 1.1325 | I118: 0.12443 | J118: 0.07657 | K118: -0.04785 | L118: 0.04785 | M118: 0.0023 | O118: 1.075 | P118: 0.07232 | Q118: 0.06482 | R118: -0.00750 | S118: 0.00750 | T118: 0.0001 | V118: 1.105 | W118: 0.09985 | X118: 0.09962 | Y118: -0.00023 | Z118: 0.00023 | AA118: 0.0000 | AC118: 1.105 | AD118: 0.09985 | AE118: 0.10463 | AF118: 0.00479 | AG118: 0.00479 | AH118: 0.0000
A119: 1.08 | B119: 0.07696 | C119: 0.08000 | D119: 0.00304 | E119: 0.00304 | F119: 0.0000 | H119: 1.138 | I119: 0.12927 | J119: 0.08147 | K119: -0.04780 | L119: 0.04780 | M119: 0.0023 | O119: 1.08 | P119: 0.07696 | Q119: 0.06896 | R119: -0.00800 | S119: 0.00800 | T119: 0.0001 | V119: 1.112 | W119: 0.10616 | X119: 0.10590 | Y119: -0.00026 | Z119: 0.00026 | AA119: 0.0000 | AC119: 1.112 | AD119: 0.10616 | AE119: 0.11155 | AF119: 0.00539 | AG119: 0.00539 | AH119: 0.0000
A120: 1.085 | B120: 0.08158 | C120: 0.08500 | D120: 0.00342 | E120: 0.00342 | F120: 0.0000 | H120: 1.1435 | I120: 0.13409 | J120: 0.08634 | K120: -0.04775 | L120: 0.04775 | M120: 0.0023 | O120: 1.085 | P120: 0.08158 | Q120: 0.07308 | R120: -0.00850 | S120: 0.00850 | T120: 0.0001 | V120: 1.119 | W120: 0.11244 | X120: 0.11214 | Y120: -0.00029 | Z120: 0.00029 | AA120: 0.0000 | AC120: 1.119 | AD120: 0.11244 | AE120: 0.11847 | AF120: 0.00603 | AG120: 0.00603 | AH120: 0.0000
A121: 1.09 | B121: 0.08618 | C121: 0.09000 | D121: 0.00382 | E121: 0.00382 | F121: 0.0000 | H121: 1.149 | I121: 0.13889 | J121: 0.09119 | K121: -0.04770 | L121: 0.04770 | M121: 0.0023 | O121: 1.09 | P121: 0.08618 | Q121: 0.07718 | R121: -0.00899 | S121: 0.00899 | T121: 0.0001 | V121: 1.126 | W121: 0.11867 | X121: 0.11834 | Y121: -0.00033 | Z121: 0.00033 | AA121: 0.0000 | AC121: 1.126 | AD121: 0.11867 | AE121: 0.12537 | AF121: 0.00669 | AG121: 0.00669 | AH121: 0.0000
A122: 1.095 | B122: 0.09075 | C122: 0.09500 | D122: 0.00425 | E122: 0.00425 | F122: 0.0000 | H122: 1.1545 | I122: 0.14367 | J122: 0.09601 | K122: -0.04766 | L122: 0.04766 | M122: 0.0023 | O122: 1.095 | P122: 0.09075 | Q122: 0.08126 | R122: -0.00949 | S122: 0.00949 | T122: 0.0001 | V122: 1.133 | W122: 0.12487 | X122: 0.12450 | Y122: -0.00037 | Z122: 0.00037 | AA122: 0.0000 | AC122: 1.133 | AD122: 0.12487 | AE122: 0.13226 | AF122: 0.00739 | AG122: 0.00739 | AH122: 0.0001
A123: 1.1 | B123: 0.09531 | C123: 0.10000 | D123: 0.00469 | E123: 0.00469 | F123: 0.0000 | H123: 1.16 | I123: 0.14842 | J123: 0.10080 | K123: -0.04762 | L123: 0.04762 | M123: 0.0023 | O123: 1.1 | P123: 0.09531 | Q123: 0.08532 | R123: -0.00999 | S123: 0.00999 | T123: 0.0001 | V123: 1.14 | W123: 0.13103 | X123: 0.13062 | Y123: -0.00041 | Z123: 0.00041 | AA123: 0.0000 | AC123: 1.14 | AD123: 0.13103 | AE123: 0.13913 | AF123: 0.00810 | AG123: 0.00810 | AH123: 0.0001
A124: 1.105 | B124: 0.09985 | C124: 0.10500 | D124: 0.00515 | E124: 0.00515 | F124: 0.0000 | H124: 1.1655 | I124: 0.15315 | J124: 0.10557 | K124: -0.04758 | L124: 0.04758 | M124: 0.0023 | O124: 1.105 | P124: 0.09985 | Q124: 0.08936 | R124: -0.01049 | S124: 0.01049 | T124: 0.0001 | V124: 1.147 | W124: 0.13715 | X124: 0.13669 | Y124: -0.00046 | Z124: 0.00046 | AA124: 0.0000 | AC124: 1.147 | AD124: 0.13715 | AE124: 0.14600 | AF124: 0.00885 | AG124: 0.00885 | AH124: 0.0001
A125: 1.11 | B125: 0.10436 | C125: 0.11000 | D125: 0.00564 | E125: 0.00564 | F125: 0.0000 | H125: 1.171 | I125: 0.15786 | J125: 0.11031 | K125: -0.04755 | L125: 0.04755 | M125: 0.0023 | O125: 1.11 | P125: 0.10436 | Q125: 0.09338 | R125: -0.01098 | S125: 0.01098 | T125: 0.0001 | V125: 1.154 | W125: 0.14323 | X125: 0.14273 | Y125: -0.00050 | Z125: 0.00050 | AA125: 0.0000 | AC125: 1.154 | AD125: 0.14323 | AE125: 0.15285 | AF125: 0.00961 | AG125: 0.00961 | AH125: 0.0001
A126: 1.115 | B126: 0.10885 | C126: 0.11500 | D126: 0.00615 | E126: 0.00615 | F126: 0.0000 | H126: 1.1765 | I126: 0.16254 | J126: 0.11502 | K126: -0.04752 | L126: 0.04752 | M126: 0.0023 | O126: 1.115 | P126: 0.10885 | Q126: 0.09737 | R126: -0.01148 | S126: 0.01148 | T126: 0.0001 | V126: 1.161 | W126: 0.14928 | X126: 0.14873 | Y126: -0.00055 | Z126: 0.00055 | AA126: 0.0000 | AC126: 1.161 | AD126: 0.14928 | AE126: 0.15969 | AF126: 0.01040 | AG126: 0.01040 | AH126: 0.0001
A127: 1.12 | B127: 0.11333 | C127: 0.12000 | D127: 0.00667 | E127: 0.00667 | F127: 0.0000 | H127: 1.182 | I127: 0.16721 | J127: 0.11971 | K127: -0.04750 | L127: 0.04750 | M127: 0.0023 | O127: 1.12 | P127: 0.11333 | Q127: 0.10135 | R127: -0.01198 | S127: 0.01198 | T127: 0.0001 | V127: 1.168 | W127: 0.15529 | X127: 0.15469 | Y127: -0.00060 | Z127: 0.00060 | AA127: 0.0000 | AC127: 1.168 | AD127: 0.15529 | AE127: 0.16651 | AF127: 0.01122 | AG127: 0.01122 | AH127: 0.0001
A128: 1.125 | B128: 0.11778 | C128: 0.12500 | D128: 0.00722 | E128: 0.00722 | F128: 0.0001 | H128: 1.1875 | I128: 0.17185 | J128: 0.12437 | K128: -0.04748 | L128: 0.04748 | M128: 0.0023 | O128: 1.125 | P128: 0.11778 | Q128: 0.10531 | R128: -0.01247 | S128: 0.01247 | T128: 0.0002 | V128: 1.175 | W128: 0.16127 | X128: 0.16061 | Y128: -0.00066 | Z128: 0.00066 | AA128: 0.0000 | AC128: 1.175 | AD128: 0.16127 | AE128: 0.17332 | AF128: 0.01205 | AG128: 0.01205 | AH128: 0.0001
A129: 1.13 | B129: 0.12222 | C129: 0.13000 | D129: 0.00778 | E129: 0.00778 | F129: 0.0001 | H129: 1.193 | I129: 0.17647 | J129: 0.12901 | K129: -0.04746 | L129: 0.04746 | M129: 0.0023 | O129: 1.13 | P129: 0.12222 | Q129: 0.10925 | R129: -0.01296 | S129: 0.01296 | T129: 0.0002 | V129: 1.182 | W129: 0.16721 | X129: 0.16649 | Y129: -0.00072 | Z129: 0.00072 | AA129: 0.0000 | AC129: 1.182 | AD129: 0.16721 | AE129: 0.18011 | AF129: 0.01290 | AG129: 0.01290 | AH129: 0.0002
A130: 1.135 | B130: 0.12663 | C130: 0.13500 | D130: 0.00837 | E130: 0.00837 | F130: 0.0001 | H130: 1.1985 | I130: 0.18107 | J130: 0.13362 | K130: -0.04745 | L130: 0.04745 | M130: 0.0023 | O130: 1.135 | P130: 0.12663 | Q130: 0.11317 | R130: -0.01346 | S130: 0.01346 | T130: 0.0002 | V130: 1.189 | W130: 0.17311 | X130: 0.17233 | Y130: -0.00078 | Z130: 0.00078 | AA130: 0.0000 | AC130: 1.189 | AD130: 0.17311 | AE130: 0.18689 | AF130: 0.01378 | AG130: 0.01378 | AH130: 0.0002
A131: 1.14 | B131: 0.13103 | C131: =aa00+bb00*(A131-1) -> 0.14000 | D131: 0.00897 | E131: 0.00897 | F131: 0.0001 | H131: 1.204 | I131: =LN(H131) -> 0.18565 | J131: =a0+b0*(A131-1)+c0*(A131-1)^2 -> 0.13821 | K131: -0.04744 | L131: 0.04744 | M131: 0.0023 | O131: 1.14 | P131: =LN(O131) -> 0.13103 | Q131: =a00+b00*(O131-1)+c00*(O131-1)^2+d00*(O131-1)^3 -> 0.11708 | R131: -0.01395 | S131: 0.01395 | T131: 0.0002 | V131: 1.196 | W131: =LN(V131) -> 0.17898 | X131: =a000+b000*(V131-1)+c000*(V131-1)^2+d000*(V131-1)^3+e000*(V131-1)^4 -> 0.17814 | Y131: -0.00084 | Z131: 0.00084 | AA131: 0.0000 | AC131: 1.196 | AD131: =LN(AC131) -> 0.17898 | AE131: =a0000+b0000*(AC131-1)+c0000*(AC131-1)^2+d0000*(AC131-1)^3+e0000*(AC131-1)^4+f0000*(AC131-1)^5 -> 0.19365 | AF131: 0.01467 | AG131: 0.01467 | AH131: 0.0002
A132: =A131+(bb0-aa0)/200 -> 1.145 | B132: =LN(A132) -> 0.13540 | C132: 0.14500 | D132: =C132-B132 -> 0.00960 | E132: =ABS(D132) -> 0.00960 | F132: =D132^2 -> 0.0001 | H132: =H131+(b-a)/200 -> 1.2095 | I132: 0.19021 | J132: 0.14277 | K132: =J132-I132 -> -0.04744 | L132: =ABS(K132) -> 0.04744 | M132: =K132^2 -> 0.0023 | O132: =O131+(bb-aa)/200 -> 1.145 | P132: 0.13540 | Q132: 0.12096 | R132: =Q132-P132 -> -0.01444 | S132: =ABS(R132) -> 0.01444 | T132: =R132^2 -> 0.0002 | V132: =V131+(bbb-aaa)/200 -> 1.203 | W132: 0.18482 | X132: 0.18391 | Y132: =X132-W132 -> -0.00091 | Z132: =ABS(Y132) -> 0.00091 | AA132: =Y132^2 -> 0.0000 | AC132: =AC131+(bbbb-aaaa)/200 -> 1.203 | AD132: 0.18482 | AE132: 0.20039 | AF132: =AE132-AD132 -> 0.01557 | AG132: =ABS(AF132) -> 0.01557 | AH132: =AF132^2 -> 0.0002
A133: 1.15 | B133: 0.13976 | C133: 0.15000 | D133: 0.01024 | E133: 0.01024 | F133: 0.0001 | H133: 1.215 | I133: 0.19474 | J133: 0.14730 | K133: -0.04744 | L133: 0.04744 | M133: 0.0023 | O133: 1.15 | P133: 0.13976 | Q133: 0.12483 | R133: -0.01493 | S133: 0.01493 | T133: 0.0002 | V133: 1.21 | W133: 0.19062 | X133: 0.18964 | Y133: -0.00098 | Z133: 0.00098 | AA133: 0.0000 | AC133: 1.21 | AD133: 0.19062 | AE133: 0.20712 | AF133: 0.01650 | AG133: 0.01650 | AH133: 0.0003
A134: 1.155 | B134: 0.14410 | C134: 0.15500 | D134: 0.01090 | E134: 0.01090 | F134: 0.0001 | H134: 1.2205 | I134: 0.19926 | J134: 0.15181 | K134: -0.04745 | L134: 0.04745 | M134: 0.0023 | O134: 1.155 | P134: 0.14410 | Q134: 0.12868 | R134: -0.01542 | S134: 0.01542 | T134: 0.0002 | V134: 1.217 | W134: 0.19639 | X134: 0.19533 | Y134: -0.00106 | Z134: 0.00106 | AA134: 0.0000 | AC134: 1.217 | AD134: 0.19639 | AE134: 0.21383 | AF134: 0.01744 | AG134: 0.01744 | AH134: 0.0003
A135: 1.16 | B135: 0.14842 | C135: 0.16000 | D135: 0.01158 | E135: 0.01158 | F135: 0.0001 | H135: 1.226 | I135: 0.20376 | J135: 0.15629 | K135: -0.04747 | L135: 0.04747 | M135: 0.0023 | O135: 1.16 | P135: 0.14842 | Q135: 0.13251 | R135: -0.01591 | S135: 0.01591 | T135: 0.0003 | V135: 1.224 | W135: 0.20212 | X135: 0.20099 | Y135: -0.00114 | Z135: 0.00114 | AA135: 0.0000 | AC135: 1.224 | AD135: 0.20212 | AE135: 0.22052 | AF135: 0.01839 | AG135: 0.01839 | AH135: 0.0003
A136: 1.165 | B136: 0.15272 | C136: 0.16500 | D136: 0.01228 | E136: 0.01228 | F136: 0.0002 | H136: 1.2315 | I136: 0.20823 | J136: 0.16074 | K136: -0.04749 | L136: 0.04749 | M136: 0.0023 | O136: 1.165 | P136: 0.15272 | Q136: 0.13632 | R136: -0.01640 | S136: 0.01640 | T136: 0.0003 | V136: 1.231 | W136: 0.20783 | X136: 0.20661 | Y136: -0.00122 | Z136: 0.00122 | AA136: 0.0000 | AC136: 1.231 | AD136: 0.20783 | AE136: 0.22719 | AF136: 0.01936 | AG136: 0.01936 | AH136: 0.0004
A137: 1.17 | B137: 0.15700 | C137: 0.17000 | D137: 0.01300 | E137: 0.01300 | F137: 0.0002 | H137: 1.237 | I137: 0.21269 | J137: 0.16517 | K137: -0.04752 | L137: 0.04752 | M137: 0.0023 | O137: 1.17 | P137: 0.15700 | Q137: 0.14012 | R137: -0.01688 | S137: 0.01688 | T137: 0.0003 | V137: 1.238 | W137: 0.21350 | X137: 0.21219 | Y137: -0.00131 | Z137: 0.00131 | AA137: 0.0000 | AC137: 1.238 | AD137: 0.21350 | AE137: 0.23384 | AF137: 0.02034 | AG137: 0.02034 | AH137: 0.0004
A138: 1.175 | B138: 0.16127 | C138: 0.17500 | D138: 0.01373 | E138: 0.01373 | F138: 0.0002 | H138: 1.2425 | I138: 0.21713 | J138: 0.16957 | K138: -0.04755 | L138: 0.04755 | M138: 0.0023 | O138: 1.175 | P138: 0.16127 | Q138: 0.14390 | R138: -0.01737 | S138: 0.01737 | T138: 0.0003 | V138: 1.245 | W138: 0.21914 | X138: 0.21774 | Y138: -0.00140 | Z138: 0.00140 | AA138: 0.0000 | AC138: 1.245 | AD138: 0.21914 | AE138: 0.24047 | AF138: 0.02134 | AG138: 0.02134 | AH138: 0.0005
A139: 1.18 | B139: 0.16551 | C139: 0.18000 | D139: 0.01449 | E139: 0.01449 | F139: 0.0002 | H139: 1.248 | I139: 0.22154 | J139: 0.17395 | K139: -0.04759 | L139: 0.04759 | M139: 0.0023 | O139: 1.18 | P139: 0.16551 | Q139: 0.14767 | R139: -0.01785 | S139: 0.01785 | T139: 0.0003 | V139: 1.252 | W139: 0.22474 | X139: 0.22325 | Y139: -0.00149 | Z139: 0.00149 | AA139: 0.0000 | AC139: 1.252 | AD139: 0.22474 | AE139: 0.24708 | AF139: 0.02234 | AG139: 0.02234 | AH139: 0.0005
A140: 1.185 | B140: 0.16974 | C140: 0.18500 | D140: 0.01526 | E140: 0.01526 | F140: 0.0002 | H140: 1.2535 | I140: 0.22594 | J140: 0.17830 | K140: -0.04764 | L140: 0.04764 | M140: 0.0023 | O140: 1.185 | P140: 0.16974 | Q140: 0.15141 | R140: -0.01833 | S140: 0.01833 | T140: 0.0003 | V140: 1.259 | W140: 0.23032 | X140: 0.22873 | Y140: -0.00159 | Z140: 0.00159 | AA140: 0.0000 | AC140: 1.259 | AD140: 0.23032 | AE140: 0.25367 | AF140: 0.02336 | AG140: 0.02336 | AH140: 0.0005
A141: 1.19 | B141: 0.17395 | C141: 0.19000 | D141: 0.01605 | E141: 0.01605 | F141: 0.0003 | H141: 1.259 | I141: 0.23032 | J141: 0.18263 | K141: -0.04769 | L141: 0.04769 | M141: 0.0023 | O141: 1.19 | P141: 0.17395 | Q141: 0.15514 | R141: -0.01881 | S141: 0.01881 | T141: 0.0004 | V141: 1.266 | W141: 0.23586 | X141: 0.23417 | Y141: -0.00170 | Z141: 0.00170 | AA141: 0.0000 | AC141: 1.266 | AD141: 0.23586 | AE141: 0.26024 | AF141: 0.02438 | AG141: 0.02438 | AH141: 0.0006
A142: 1.195 | B142: 0.17815 | C142: 0.19500 | D142: 0.01685 | E142: 0.01685 | F142: 0.0003 | H142: 1.2645 | I142: 0.23468 | J142: 0.18693 | K142: -0.04775 | L142: 0.04775 | M142: 0.0023 | O142: 1.195 | P142: 0.17815 | Q142: 0.15886 | R142: -0.01929 | S142: 0.01929 | T142: 0.0004 | V142: 1.273 | W142: 0.24138 | X142: 0.23957 | Y142: -0.00181 | Z142: 0.00181 | AA142: 0.0000 | AC142: 1.273 | AD142: 0.24138 | AE142: 0.26679 | AF142: 0.02542 | AG142: 0.02542 | AH142: 0.0006
A143: 1.2 | B143: 0.18232 | C143: 0.20000 | D143: 0.01768 | E143: 0.01768 | F143: 0.0003 | H143: 1.27 | I143: 0.23902 | J143: 0.19120 | K143: -0.04782 | L143: 0.04782 | M143: 0.0023 | O143: 1.2 | P143: 0.18232 | Q143: 0.16256 | R143: -0.01976 | S143: 0.01976 | T143: 0.0004 | V143: 1.28 | W143: 0.24686 | X143: 0.24494 | Y143: -0.00192 | Z143: 0.00192 | AA143: 0.0000 | AC143: 1.28 | AD143: 0.24686 | AE143: 0.27332 | AF143: 0.02646 | AG143: 0.02646 | AH143: 0.0007
A144: 1.205 | B144: 0.18648 | C144: 0.20500 | D144: 0.01852 | E144: 0.01852 | F144: 0.0003 | H144: 1.2755 | I144: 0.24334 | J144: 0.19545 | K144: -0.04789 | L144: 0.04789 | M144: 0.0023 | O144: 1.205 | P144: 0.18648 | Q144: 0.16624 | R144: -0.02024 | S144: 0.02024 | T144: 0.0004 | V144: 1.287 | W144: 0.25231 | X144: 0.25027 | Y144: -0.00204 | Z144: 0.00204 | AA144: 0.0000 | AC144: 1.287 | AD144: 0.25231 | AE144: 0.27982 | AF144: 0.02751 | AG144: 0.02751 | AH144: 0.0008
A145: 1.21 | B145: 0.19062 | C145: 0.21000 | D145: 0.01938 | E145: 0.01938 | F145: 0.0004 | H145: 1.281 | I145: 0.24764 | J145: 0.19967 | K145: -0.04797 | L145: 0.04797 | M145: 0.0023 | O145: 1.21 | P145: 0.19062 | Q145: 0.16991 | R145: -0.02071 | S145: 0.02071 | T145: 0.0004 | V145: 1.294 | W145: 0.25774 | X145: 0.25557 | Y145: -0.00217 | Z145: 0.00217 | AA145: 0.0000 | AC145: 1.294 | AD145: 0.25774 | AE145: 0.28631 | AF145: 0.02857 | AG145: 0.02857 | AH145: 0.0008
A146: 1.215 | B146: 0.19474 | C146: 0.21500 | D146: 0.02026 | E146: 0.02026 | F146: 0.0004 | H146: 1.2865 | I146: 0.25193 | J146: 0.20386 | K146: -0.04806 | L146: 0.04806 | M146: 0.0023 | O146: 1.215 | P146: 0.19474 | Q146: 0.17357 | R146: -0.02118 | S146: 0.02118 | T146: 0.0004 | V146: 1.301 | W146: 0.26313 | X146: 0.26083 | Y146: -0.00230 | Z146: 0.00230 | AA146: 0.0000 | AC146: 1.301 | AD146: 0.26313 | AE146: 0.29277 | AF146: 0.02963 | AG146: 0.02963 | AH146: 0.0009
A147: 1.22 | B147: 0.19885 | C147: 0.22000 | D147: 0.02115 | E147: 0.02115 | F147: 0.0004 | H147: 1.292 | I147: 0.25619 | J147: 0.20803 | K147: -0.04816 | L147: 0.04816 | M147: 0.0023 | O147: 1.22 | P147: 0.19885 | Q147: 0.17721 | R147: -0.02164 | S147: 0.02164 | T147: 0.0005 | V147: 1.308 | W147: 0.26850 | X147: 0.26606 | Y147: -0.00244 | Z147: 0.00244 | AA147: 0.0000 | AC147: 1.308 | AD147: 0.26850 | AE147: 0.29920 | AF147: 0.03071 | AG147: 0.03071 | AH147: 0.0009
A148: 1.225 | B148: 0.20294 | C148: 0.22500 | D148: 0.02206 | E148: 0.02206 | F148: 0.0005 | H148: 1.2975 | I148: 0.26044 | J148: 0.21217 | K148: -0.04826 | L148: 0.04826 | M148: 0.0023 | O148: 1.225 | P148: 0.20294 | Q148: 0.18083 | R148: -0.02211 | S148: 0.02211 | T148: 0.0005 | V148: 1.315 | W148: 0.27384 | X148: 0.27126 | Y148: -0.00258 | Z148: 0.00258 | AA148: 0.0000 | AC148: 1.315 | AD148: 0.27384 | AE148: 0.30562 | AF148: 0.03178 | AG148: 0.03178 | AH148: 0.0010
A149: 1.23 | B149: 0.20701 | C149: 0.23000 | D149: 0.02299 | E149: 0.02299 | F149: 0.0005 | H149: 1.303 | I149: 0.26467 | J149: 0.21629 | K149: -0.04838 | L149: 0.04838 | M149: 0.0023 | O149: 1.23 | P149: 0.20701 | Q149: 0.18444 | R149: -0.02257 | S149: 0.02257 | T149: 0.0005 | V149: 1.322 | W149: 0.27915 | X149: 0.27641 | Y149: -0.00273 | Z149: 0.00273 | AA149: 0.0000 | AC149: 1.322 | AD149: 0.27915 | AE149: 0.31201 | AF149: 0.03286 | AG149: 0.03286 | AH149: 0.0011
A150: 1.235 | B150: 0.21107 | C150: 0.23500 | D150: 0.02393 | E150: 0.02393 | F150: 0.0006 | H150: 1.3085 | I150: 0.26888 | J150: 0.22038 | K150: -0.04850 | L150: 0.04850 | M150: 0.0024 | O150: 1.235 | P150: 0.21107 | Q150: 0.18804 | R150: -0.02303 | S150: 0.02303 | T150: 0.0005 | V150: 1.329 | W150: 0.28443 | X150: 0.28154 | Y150: -0.00289 | Z150: 0.00289 | AA150: 0.0000 | AC150: 1.329 | AD150: 0.28443 | AE150: 0.31838 | AF150: 0.03395 | AG150: 0.03395 | AH150: 0.0012
A151: 1.24 | B151: 0.21511 | C151: 0.24000 | D151: 0.02489 | E151: 0.02489 | F151: 0.0006 | H151: 1.314 | I151: 0.27308 | J151: 0.22445 | K151: -0.04863 | L151: 0.04863 | M151: 0.0024 | O151: 1.24 | P151: 0.21511 | Q151: 0.19162 | R151: -0.02349 | S151: 0.02349 | T151: 0.0006 | V151: 1.336 | W151: 0.28968 | X151: 0.28663 | Y151: -0.00305 | Z151: 0.00305 | AA151: 0.0000 | AC151: 1.336 | AD151: 0.28968 | AE151: 0.32472 | AF151: 0.03504 | AG151: 0.03504 | AH151: 0.0012
A152: 1.245 | B152: 0.21914 | C152: 0.24500 | D152: 0.02586 | E152: 0.02586 | F152: 0.0007 | H152: 1.3195 | I152: 0.27725 | J152: 0.22849 | K152: -0.04877 | L152: 0.04877 | M152: 0.0024 | O152: 1.245 | P152: 0.21914 | Q152: 0.19519 | R152: -0.02394 | S152: 0.02394 | T152: 0.0006 | V152: 1.343 | W152: 0.29491 | X152: 0.29168 | Y152: -0.00323 | Z152: 0.00323 | AA152: 0.0000 | AC152: 1.343 | AD152: 0.29491 | AE152: 0.33104 | AF152: 0.03613 | AG152: 0.03613 | AH152: 0.0013
A153: 1.25 | B153: 0.22314 | C153: 0.25000 | D153: 0.02686 | E153: 0.02686 | F153: 0.0007 | H153: 1.325 | I153: 0.28141 | J153: 0.23250 | K153: -0.04891 | L153: 0.04891 | M153: 0.0024 | O153: 1.25 | P153: 0.22314 | Q153: 0.19875 | R153: -0.02439 | S153: 0.02439 | T153: 0.0006 | V153: 1.35 | W153: 0.30010 | X153: 0.29670 | Y153: -0.00341 | Z153: 0.00341 | AA153: 0.0000 | AC153: 1.35 | AD153: 0.30010 | AE153: 0.33733 | AF153: 0.03723 | AG153: 0.03723 | AH153: 0.0014
A154: 1.255 | B154: 0.22714 | C154: 0.25500 | D154: 0.02786 | E154: 0.02786 | F154: 0.0008 | H154: 1.3305 | I154: 0.28555 | J154: 0.23649 | K154: -0.04907 | L154: 0.04907 | M154: 0.0024 | O154: 1.255 | P154: 0.22714 | Q154: 0.20229 | R154: -0.02484 | S154: 0.02484 | T154: 0.0006 | V154: 1.357 | W154: 0.30528 | X154: 0.30168 | Y154: -0.00360 | Z154: 0.00360 | AA154: 0.0000 | AC154: 1.357 | AD154: 0.30528 | AE154: 0.34360 | AF154: 0.03832 | AG154: 0.03832 | AH154: 0.0015
A155: 1.26 | B155: 0.23111 | C155: 0.26000 | D155: 0.02889 | E155: 0.02889 | F155: 0.0008 | H155: 1.336 | I155: 0.28968 | J155: 0.24045 | K155: -0.04923 | L155: 0.04923 | M155: 0.0024 | O155: 1.26 | P155: 0.23111 | Q155: 0.20582 | R155: -0.02529 | S155: 0.02529 | T155: 0.0006 | V155: 1.364 | W155: 0.31042 | X155: 0.30663 | Y155: -0.00379 | Z155: 0.00379 | AA155: 0.0000 | AC155: 1.364 | AD155: 0.31042 | AE155: 0.34984 | AF155: 0.03942 | AG155: 0.03942 | AH155: 0.0016
A156: 1.265 | B156: 0.23507 | C156: 0.26500 | D156: 0.02993 | E156: 0.02993 | F156: 0.0009 | H156: 1.3415 | I156: 0.29379 | J156: 0.24438 | K156: -0.04941 | L156: 0.04941 | M156: 0.0024 | O156: 1.265 | P156: 0.23507 | Q156: 0.20934 | R156: -0.02573 | S156: 0.02573 | T156: 0.0007 | V156: 1.371 | W156: 0.31554 | X156: 0.31154 | Y156: -0.00400 | Z156: 0.00400 | AA156: 0.0000 | AC156: 1.371 | AD156: 0.31554 | AE156: 0.35606 | AF156: 0.04052 | AG156: 0.04052 | AH156: 0.0016
A157: 1.27 | B157: 0.23902 | C157: 0.27000 | D157: 0.03098 | E157: 0.03098 | F157: 0.0010 | H157: 1.347 | I157: 0.29788 | J157: 0.24829 | K157: -0.04959 | L157: 0.04959 | M157: 0.0025 | O157: 1.27 | P157: 0.23902 | Q157: 0.21285 | R157: -0.02617 | S157: 0.02617 | T157: 0.0007 | V157: 1.378 | W157: 0.32063 | X157: 0.31642 | Y157: -0.00421 | Z157: 0.00421 | AA157: 0.0000 | AC157: 1.378 | AD157: 0.32063 | AE157: 0.36226 | AF157: 0.04163 | AG157: 0.04163 | AH157: 0.0017
A158: 1.275 | B158: 0.24295 | C158: 0.27500 | D158: 0.03205 | E158: 0.03205 | F158: 0.0010 | H158: 1.3525 | I158: 0.30195 | J158: 0.25217 | K158: -0.04978 | L158: 0.04978 | M158: 0.0025 | O158: 1.275 | P158: 0.24295 | Q158: 0.21634 | R158: -0.02660 | S158: 0.02660 | T158: 0.0007 | V158: 1.385 | W158: 0.32570 | X158: 0.32126 | Y158: -0.00444 | Z158: 0.00444 | AA158: 0.0000 | AC158: 1.385 | AD158: 0.32570 | AE158: 0.36843 | AF158: 0.04273 | AG158: 0.04273 | AH158: 0.0018
A159: 1.28 | B159: 0.24686 | C159: 0.28000 | D159: 0.03314 | E159: 0.03314 | F159: 0.0011 | H159: 1.358 | I159: 0.30601 | J159: 0.25603 | K159: -0.04998 | L159: 0.04998 | M159: 0.0025 | O159: 1.28 | P159: 0.24686 | Q159: 0.21982 | R159: -0.02704 | S159: 0.02704 | T159: 0.0007 | V159: 1.392 | W159: 0.33074 | X159: 0.32607 | Y159: -0.00467 | Z159: 0.00467 | AA159: 0.0000 | AC159: 1.392 | AD159: 0.33074 | AE159: 0.37458 | AF159: 0.04383 | AG159: 0.04383 | AH159: 0.0019
A160: 1.285 | B160: 0.25076 | C160: 0.28500 | D160: 0.03424 | E160: 0.03424 | F160: 0.0012 | H160: 1.3635 | I160: 0.31005 | J160: 0.25986 | K160: -0.05019 | L160: 0.05019 | M160: 0.0025 | O160: 1.285 | P160: 0.25076 | Q160: 0.22330 | R160: -0.02746 | S160: 0.02746 | T160: 0.0008 | V160: 1.399 | W160: 0.33576 | X160: 0.33084 | Y160: -0.00492 | Z160: 0.00492 | AA160: 0.0000 | AC160: 1.399 | AD160: 0.33576 | AE160: 0.38070 | AF160: 0.04494 | AG160: 0.04494 | AH160: 0.0020
A161: 1.29 | B161: 0.25464 | C161: 0.29000 | D161: 0.03536 | E161: 0.03536 | F161: 0.0013 | H161: 1.369 | I161: 0.31408 | J161: 0.26367 | K161: -0.05041 | L161: 0.05041 | M161: 0.0025 | O161: 1.29 | P161: 0.25464 | Q161: 0.22675 | R161: -0.02789 | S161: 0.02789 | T161: 0.0008 | V161: 1.406 | W161: 0.34075 | X161: 0.33558 | Y161: -0.00517 | Z161: 0.00517 | AA161: 0.0000 | AC161: 1.406 | AD161: 0.34075 | AE161: 0.38679 | AF161: 0.04604 | AG161: 0.04604 | AH161: 0.0021
A162: 1.295 | B162: 0.25851 | C162: 0.29500 | D162: 0.03649 | E162: 0.03649 | F162: 0.0013 | H162: 1.3745 | I162: 0.31809 | J162: 0.26745 | K162: -0.05064 | L162: 0.05064 | M162: 0.0026 | O162: 1.295 | P162: 0.25851 | Q162: 0.23020 | R162: -0.02831 | S162: 0.02831 | T162: 0.0008 | V162: 1.413 | W162: 0.34572 | X162: 0.34028 | Y162: -0.00544 | Z162: 0.00544 | AA162: 0.0000 | AC162: 1.413 | AD162: 0.34572 | AE162: 0.39286 | AF162: 0.04715 | AG162: 0.04715 | AH162: 0.0022
A163: 1.3 | B163: 0.26236 | C163: 0.30000 | D163: 0.03764 | E163: 0.03764 | F163: 0.0014 | H163: 1.38 | I163: 0.32208 | J163: 0.27120 | K163: -0.05088 | L163: 0.05088 | M163: 0.0026 | O163: 1.3 | P163: 0.26236 | Q163: 0.23364 | R163: -0.02872 | S163: 0.02872 | T163: 0.0008 | V163: 1.42 | W163: 0.35066 | X163: 0.34494 | Y163: -0.00572 | Z163: 0.00572 | AA163: 0.0000 | AC163: 1.42 | AD163: 0.35066 | AE163: 0.39891 | AF163: 0.04825 | AG163: 0.04825 | AH163: 0.0023
A164: =A163+(bb0-aa0)/200 -> 1.305 | B164: 0.26620 | C164: 0.30500 | D164: 0.03880 | E164: 0.03880 | F164: 0.0015 | H164: 1.3855 | I164: 0.32606 | J164: 0.27493 | K164: -0.05113 | L164: 0.05113 | M164: 0.0026 | O164: =O163+(bb-aa)/200 -> 1.305 | P164: 0.26620 | Q164: 0.23707 | R164: -0.02914 | S164: 0.02914 | T164: 0.0008 | V164: =V163+(bbb-aaa)/200 -> 1.427 | W164: 0.35557 | X164: 0.34957 | Y164: -0.00600 | Z164: 0.00600 | AA164: 0.0000 | AC164: =AC163+(bbbb-aaaa)/200 -> 1.427 | AD164: 0.35557 | AE164: 0.40493 | AF164: 0.04935 | AG164: 0.04935 | AH164: 0.0024
A165: 1.31 | B165: 0.27003 | C165: 0.31000 | D165: 0.03997 | E165: 0.03997 | F165: 0.0016 | H165: 1.391 | I165: 0.33002 | J165: 0.27863 | K165: -0.05139 | L165: 0.05139 | M165: 0.0026 | O165: 1.31 | P165: 0.27003 | Q165: 0.24048 | R165: -0.02954 | S165: 0.02954 | T165: 0.0009 | V165: 1.434 | W165: 0.36047 | X165: 0.35416 | Y165: -0.00631 | Z165: 0.00631 | AA165: 0.0000 | AC165: 1.434 | AD165: 0.36047 | AE165: 0.41092 | AF165: 0.05045 | AG165: 0.05045 | AH165: 0.0025
A166: 1.315 | B166: 0.27384 | C166: 0.31500 | D166: 0.04116 | E166: 0.04116 | F166: 0.0017 | H166: 1.3965 | I166: 0.33397 | J166: 0.28230 | K166: -0.05167 | L166: 0.05167 | M166: 0.0027 | O166: 1.315 | P166: 0.27384 | Q166: 0.24389 | R166: -0.02995 | S166: 0.02995 | T166: 0.0009 | V166: 1.441 | W166: 0.36534 | X166: 0.35872 | Y166: -0.00662 | Z166: 0.00662 | AA166: 0.0000 | AC166: 1.441 | AD166: 0.36534 | AE166: 0.41689 | AF166: 0.05155 | AG166: 0.05155 | AH166: 0.0027
A167: 1.32 | B167: 0.27763 | C167: 0.32000 | D167: 0.04237 | E167: 0.04237 | F167: 0.0018 | H167: 1.402 | I167: 0.33790 | J167: 0.28595 | K167: -0.05195 | L167: 0.05195 | M167: 0.0027 | O167: 1.32 | P167: 0.27763 | Q167: 0.24729 | R167: -0.03035 | S167: 0.03035 | T167: 0.0009 | V167: 1.448 | W167: 0.37018 | X167: 0.36324 | Y167: -0.00695 | Z167: 0.00695 | AA167: 0.0000 | AC167: 1.448 | AD167: 0.37018 | AE167: 0.42284 | AF167: 0.05265 | AG167: 0.05265 | AH167: 0.0028
A168: 1.325 | B168: 0.28141 | C168: 0.32500 | D168: 0.04359 | E168: 0.04359 | F168: 0.0019 | H168: 1.4075 | I168: 0.34182 | J168: 0.28957 | K168: -0.05224 | L168: 0.05224 | M168: 0.0027 | O168: 1.325 | P168: 0.28141 | Q168: 0.25067 | R168: -0.03074 | S168: 0.03074 | T168: 0.0009 | V168: 1.455 | W168: 0.37501 | X168: 0.36772 | Y168: -0.00729 | Z168: 0.00729 | AA168: 0.0001 | AC168: 1.455 | AD168: 0.37501 | AE168: 0.42876 | AF168: 0.05375 | AG168: 0.05375 | AH168: 0.0029
A169: 1.33 | B169: 0.28518 | C169: 0.33000 | D169: 0.04482 | E169: 0.04482 | F169: 0.0020 | H169: 1.413 | I169: 0.34572 | J169: 0.29317 | K169: -0.05254 | L169: 0.05254 | M169: 0.0028 | O169: 1.33 | P169: 0.28518 | Q169: 0.25405 | R169: -0.03113 | S169: 0.03113 | T169: 0.0010 | V169: 1.462 | W169: 0.37981 | X169: 0.37216 | Y169: -0.00764 | Z169: 0.00764 | AA169: 0.0001 | AC169: 1.462 | AD169: 0.37981 | AE169: 0.43465 | AF169: 0.05485 | AG169: 0.05485 | AH169: 0.0030
A170: 1.335 | B170: 0.28893 | C170: 0.33500 | D170: 0.04607 | E170: 0.04607 | F170: 0.0021 | H170: 1.4185 | I170: 0.34960 | J170: 0.29674 | K170: -0.05286 | L170: 0.05286 | M170: 0.0028 | O170: 1.335 | P170: 0.28893 | Q170: 0.25742 | R170: -0.03151 | S170: 0.03151 | T170: 0.0010 | V170: 1.469 | W170: 0.38458 | X170: 0.37657 | Y170: -0.00801 | Z170: 0.00801 | AA170: 0.0001 | AC170: 1.469 | AD170: 0.38458 | AE170: 0.44053 | AF170: 0.05594 | AG170: 0.05594 | AH170: 0.0031
A171: 1.34 | B171: 0.29267 | C171: 0.34000 | D171: 0.04733 | E171: 0.04733 | F171: 0.0022 | H171: 1.424 | I171: 0.35347 | J171: 0.30029 | K171: -0.05318 | L171: 0.05318 | M171: 0.0028 | O171: 1.34 | P171: 0.29267 | Q171: 0.26078 | R171: -0.03189 | S171: 0.03189 | T171: 0.0010 | V171: 1.476 | W171: 0.38934 | X171: 0.38094 | Y171: -0.00840 | Z171: 0.00840 | AA171: 0.0001 | AC171: 1.476 | AD171: 0.38934 | AE171: 0.44638 | AF171: 0.05704 | AG171: 0.05704 | AH171: 0.0033
A172: 1.345 | B172: 0.29639 | C172: 0.34500 | D172: 0.04861 | E172: 0.04861 | F172: 0.0024 | H172: 1.4295 | I172: 0.35732 | J172: 0.30381 | K172: -0.05352 | L172: 0.05352 | M172: 0.0029 | O172: 1.345 | P172: 0.29639 | Q172: 0.26413 | R172: -0.03227 | S172: 0.03227 | T172: 0.0010 | V172: 1.483 | W172: 0.39407 | X172: 0.38527 | Y172: -0.00880 | Z172: 0.00880 | AA172: 0.0001 | AC172: 1.483 | AD172: 0.39407 | AE172: 0.45220 | AF172: 0.05813 | AG172: 0.05813 | AH172: 0.0034
A173: 1.35 | B173: 0.30010 | C173: 0.35000 | D173: 0.04990 | E173: 0.04990 | F173: 0.0025 | H173: 1.435 | I173: 0.36116 | J173: 0.30730 | K173: -0.05386 | L173: 0.05386 | M173: 0.0029 | O173: 1.35 | P173: 0.30010 | Q173: 0.26747 | R173: -0.03263 | S173: 0.03263 | T173: 0.0011 | V173: 1.49 | W173: 0.39878 | X173: 0.38956 | Y173: -0.00922 | Z173: 0.00922 | AA173: 0.0001 | AC173: 1.49 | AD173: 0.39878 | AE173: 0.45800 | AF173: 0.05923 | AG173: 0.05923 | AH173: 0.0035
A174: 1.355 | B174: 0.30380 | C174: 0.35500 | D174: 0.05120 | E174: 0.05120 | F174: 0.0026 | H174: 1.4405 | I174: 0.36499 | J174: 0.31077 | K174: -0.05422 | L174: 0.05422 | M174: 0.0029 | O174: 1.355 | P174: 0.30380 | Q174: 0.27080 | R174: -0.03300 | S174: 0.03300 | T174: 0.0011 | V174: 1.497 | W174: 0.40346 | X174: 0.39381 | Y174: -0.00965 | Z174: 0.00965 | AA174: 0.0001 | AC174: 1.497 | AD174: 0.40346 | AE174: 0.46378 | AF174: 0.06032 | AG174: 0.06032 | AH174: 0.0036
A175: 1.36 | B175: 0.30748 | C175: 0.36000 | D175: 0.05252 | E175: 0.05252 | F175: 0.0028 | H175: 1.446 | I175: 0.36880 | J175: 0.31421 | K175: -0.05459 | L175: 0.05459 | M175: 0.0030 | O175: 1.36 | P175: 0.30748 | Q175: 0.27413 | R175: -0.03335 | S175: 0.03335 | T175: 0.0011 | V175: 1.504 | W175: 0.40813 | X175: 0.39803 | Y175: -0.01010 | Z175: 0.01010 | AA175: 0.0001 | AC175: 1.504 | AD175: 0.40813 | AE175: 0.46954 | AF175: 0.06141 | AG175: 0.06141 | AH175: 0.0038
A176: 1.365 | B176: 0.31115 | C176: 0.36500 | D176: 0.05385 | E176: 0.05385 | F176: 0.0029 | H176: 1.4515 | I176: 0.37260 | J176: 0.31762 | K176: -0.05497 | L176: 0.05497 | M176: 0.0030 | O176: 1.365 | P176: 0.31115 | Q176: 0.27745 | R176: -0.03371 | S176: 0.03371 | T176: 0.0011 | V176: 1.511 | W176: 0.41277 | X176: 0.40220 | Y176: -0.01057 | Z176: 0.01057 | AA176: 0.0001 | AC176: 1.511 | AD176: 0.41277 | AE176: 0.47527 | AF176: 0.06250 | AG176: 0.06250 | AH176: 0.0039
A177: 1.37 | B177: 0.31481 | C177: 0.37000 | D177: 0.05519 | E177: 0.05519 | F177: 0.0030 | H177: 1.457 | I177: 0.37638 | J177: 0.32101 | K177: -0.05537 | L177: 0.05537 | M177: 0.0031 | O177: 1.37 | P177: 0.31481 | Q177: 0.28076 | R177: -0.03405 | S177: 0.03405 | T177: 0.0012 | V177: 1.518 | W177: 0.41739 | X177: 0.40634 | Y177: -0.01105 | Z177: 0.01105 | AA177: 0.0001 | AC177: 1.518 | AD177: 0.41739 | AE177: 0.48098 | AF177: 0.06359 | AG177: 0.06359 | AH177: 0.0040
A178: 1.375 | B178: 0.31845 | C178: 0.37500 | D178: 0.05655 | E178: 0.05655 | F178: 0.0032 | H178: 1.4625 | I178: 0.38015 | J178: 0.32437 | K178: -0.05577 | L178: 0.05577 | M178: 0.0031 | O178: 1.375 | P178: 0.31845 | Q178: 0.28406 | R178: -0.03439 | S178: 0.03439 | T178: 0.0012 | V178: 1.525 | W178: 0.42199 | X178: 0.41043 | Y178: -0.01156 | Z178: 0.01156 | AA178: 0.0001 | AC178: 1.525 | AD178: 0.42199 | AE178: 0.48667 | AF178: 0.06468 | AG178: 0.06468 | AH178: 0.0042
A179: 1.38 | B179: 0.32208 | C179: 0.38000 | D179: 0.05792 | E179: 0.05792 | F179: 0.0034 | H179: 1.468 | I179: 0.38390 | J179: 0.32771 | K179: -0.05619 | L179: 0.05619 | M179: 0.0032 | O179: 1.38 | P179: 0.32208 | Q179: 0.28736 | R179: -0.03472 | S179: 0.03472 | T179: 0.0012 | V179: 1.532 | W179: 0.42657 | X179: 0.41449 | Y179: -0.01208 | Z179: 0.01208 | AA179: 0.0001 | AC179: 1.532 | AD179: 0.42657 | AE179: 0.49234 | AF179: 0.06577 | AG179: 0.06577 | AH179: 0.0043
A180: 1.385 | B180: 0.32570 | C180: 0.38500 | D180: 0.05930 | E180: 0.05930 | F180: 0.0035 | H180: 1.4735 | I180: 0.38764 | J180: 0.33102 | K180: -0.05662 | L180: 0.05662 | M180: 0.0032 | O180: 1.385 | P180: 0.32570 | Q180: 0.29065 | R180: -0.03505 | S180: 0.03505 | T180: 0.0012 | V180: 1.539 | W180: 0.43113 | X180: 0.41850 | Y180: -0.01263 | Z180: 0.01263 | AA180: 0.0002 | AC180: 1.539 | AD180: 0.43113 | AE180: 0.49799 | AF180: 0.06686 | AG180: 0.06686 | AH180: 0.0045
A181: 1.39 | B181: 0.32930 | C181: 0.39000 | D181: 0.06070 | E181: 0.06070 | F181: 0.0037 | H181: 1.479 | I181: 0.39137 | J181: 0.33431 | K181: -0.05706 | L181: 0.05706 | M181: 0.0033 | O181: 1.39 | P181: 0.32930 | Q181: 0.29393 | R181: -0.03537 | S181: 0.03537 | T181: 0.0013 | V181: 1.546 | W181: 0.43567 | X181: 0.42248 | Y181: -0.01320 | Z181: 0.01320 | AA181: 0.0002 | AC181: 1.546 | AD181: 0.43567 | AE181: 0.50362 | AF181: 0.06795 | AG181: 0.06795 | AH181: 0.0046
A182: 1.395 | B182: 0.33289 | C182: 0.39500 | D182: 0.06211 | E182: 0.06211 | F182: 0.0039 | H182: 1.4845 | I182: 0.39508 | J182: 0.33757 | K182: -0.05751 | L182: 0.05751 | M182: 0.0033 | O182: 1.395 | P182: 0.33289 | Q182: 0.29721 | R182: -0.03569 | S182: 0.03569 | T182: 0.0013 | V182: 1.553 | W182: 0.44019 | X182: 0.42641 | Y182: -0.01378 | Z182: 0.01378 | AA182: 0.0002 | AC182: 1.553 | AD182: 0.44019 | AE182: 0.50923 | AF182: 0.06904 | AG182: 0.06904 | AH182: 0.0048
A183: 1.4 | B183: 0.33647 | C183: 0.40000 | D183: 0.06353 | E183: 0.06353 | F183: 0.0040 | H183: 1.49 | I183: 0.39878 | J183: 0.34080 | K183: -0.05798 | L183: 0.05798 | M183: 0.0034 | O183: 1.4 | P183: 0.33647 | Q183: 0.30048 | R183: -0.03599 | S183: 0.03599 | T183: 0.0013 | V183: 1.56 | W183: 0.44469 | X183: 0.43030 | Y183: -0.01439 | Z183: 0.01439 | AA183: 0.0002 | AC183: 1.56 | AD183: 0.44469 | AE183: 0.51482 | AF183: 0.07013 | AG183: 0.07013 | AH183: 0.0049
A184: 1.405 | B184: 0.34004 | C184: 0.40500 | D184: 0.06496 | E184: 0.06496 | F184: 0.0042 | H184: 1.4955 | I184: 0.40246 | J184: 0.34401 | K184: -0.05845 | L184: 0.05845 | M184: 0.0034 | O184: 1.405 | P184: 0.34004 | Q184: 0.30375 | R184: -0.03629 | S184: 0.03629 | T184: 0.0013 | V184: 1.567 | W184: 0.44916 | X184: 0.43414 | Y184: -0.01502 | Z184: 0.01502 | AA184: 0.0002 | AC184: 1.567 | AD184: 0.44916 | AE184: 0.52039 | AF184: 0.07123 | AG184: 0.07123 | AH184: 0.0051
A185: 1.41 | B185: 0.34359 | C185: 0.41000 | D185: 0.06641 | E185: 0.06641 | F185: 0.0044 | H185: 1.501 | I185: 0.40613 | J185: 0.34719 | K185: -0.05894 | L185: 0.05894 | M185: 0.0035 | O185: 1.41 | P185: 0.34359 | Q185: 0.30700 | R185: -0.03658 | S185: 0.03658 | T185: 0.0013 | V185: 1.574 | W185: 0.45362 | X185: 0.43794 | Y185: -0.01568 | Z185: 0.01568 | AA185: 0.0002 | AC185: 1.574 | AD185: 0.45362 | AE185: 0.52594 | AF185: 0.07232 | AG185: 0.07232 | AH185: 0.0052
A186: 1.415 | B186: 0.34713 | C186: 0.41500 | D186: 0.06787 | E186: 0.06787 | F186: 0.0046 | H186: 1.5065 | I186: 0.40979 | J186: 0.35034 | K186: -0.05945 | L186: 0.05945 | M186: 0.0035 | O186: 1.415 | P186: 0.34713 | Q186: 0.31026 | R186: -0.03687 | S186: 0.03687 | T186: 0.0014 | V186: 1.581 | W186: 0.45806 | X186: 0.44170 | Y186: -0.01636 | Z186: 0.01636 | AA186: 0.0003 | AC186: 1.581 | AD186: 0.45806 | AE186: 0.53148 | AF186: 0.07342 | AG186: 0.07342 | AH186: 0.0054
A187: 1.42 | B187: 0.35066 | C187: 0.42000 | D187: 0.06934 | E187: 0.06934 | F187: 0.0048 | H187: 1.512 | I187: 0.41343 | J187: 0.35347 | K187: -0.05996 | L187: 0.05996 | M187: 0.0036 | O187: 1.42 | P187: 0.35066 | Q187: 0.31351 | R187: -0.03715 | S187: 0.03715 | T187: 0.0014 | V187: 1.588 | W187: 0.46248 | X187: 0.44542 | Y187: -0.01706 | Z187: 0.01706 | AA187: 0.0003 | AC187: 1.588 | AD187: 0.46248 | AE187: 0.53700 | AF187: 0.07453 | AG187: 0.07453 | AH187: 0.0056
A188: 1.425 | B188: 0.35417 | C188: 0.42500 | D188: 0.07083 | E188: 0.07083 | F188: 0.0050 | H188: 1.5175 | I188: 0.41706 | J188: 0.35657 | K188: -0.06049 | L188: 0.06049 | M188: 0.0037 | O188: 1.425 | P188: 0.35417 | Q188: 0.31675 | R188: -0.03742 | S188: 0.03742 | T188: 0.0014 | V188: 1.595 | W188: 0.46687 | X188: 0.44909 | Y188: -0.01779 | Z188: 0.01779 | AA188: 0.0003 | AC188: 1.595 | AD188: 0.46687 | AE188: 0.54251 | AF188: 0.07563 | AG188: 0.07563 | AH188: 0.0057
A189: 1.43 | B189: 0.35767 | C189: 0.43000 | D189: 0.07233 | E189: 0.07233 | F189: 0.0052 | H189: 1.523 | I189: 0.42068 | J189: 0.35965 | K189: -0.06103 | L189: 0.06103 | M189: 0.0037 | O189: 1.43 | P189: 0.35767 | Q189: 0.31999 | R189: -0.03768 | S189: 0.03768 | T189: 0.0014 | V189: 1.602 | W189: 0.47125 | X189: 0.45271 | Y189: -0.01854 | Z189: 0.01854 | AA189: 0.0003 | AC189: 1.602 | AD189: 0.47125 | AE189: 0.54800 | AF189: 0.07675 | AG189: 0.07675 | AH189: 0.0059
A190: 1.435 | B190: 0.36116 | C190: 0.43500 | D190: 0.07384 | E190: 0.07384 | F190: 0.0055 | H190: 1.5285 | I190: 0.42429 | J190: 0.36270 | K190: -0.06158 | L190: 0.06158 | M190: 0.0038 | O190: 1.435 | P190: 0.36116 | Q190: 0.32323 | R190: -0.03794 | S190: 0.03794 | T190: 0.0014 | V190: 1.609 | W190: 0.47561 | X190: 0.45629 | Y190: -0.01932 | Z190: 0.01932 | AA190: 0.0004 | AC190: 1.609 | AD190: 0.47561 | AE190: 0.55348 | AF190: 0.07786 | AG190: 0.07786 | AH190: 0.0061
A191: 1.44 | B191: 0.36464 | C191: 0.44000 | D191: 0.07536 | E191: 0.07536 | F191: 0.0057 | H191: 1.534 | I191: 0.42788 | J191: 0.36573 | K191: -0.06215 | L191: 0.06215 | M191: 0.0039 | O191: 1.44 | P191: 0.36464 | Q191: 0.32646 | R191: -0.03818 | S191: 0.03818 | T191: 0.0015 | V191: 1.616 | W191: 0.47995 | X191: 0.45982 | Y191: -0.02013 | Z191: 0.02013 | AA191: 0.0004 | AC191: 1.616 | AD191: 0.47995 | AE191: 0.55894 | AF191: 0.07899 | AG191: 0.07899 | AH191: 0.0062
A192: 1.445 | B192: 0.36811 | C192: 0.44500 | D192: 0.07689 | E192: 0.07689 | F192: 0.0059 | H192: 1.5395 | I192: 0.43146 | J192: 0.36873 | K192: -0.06273 | L192: 0.06273 | M192: 0.0039 | O192: 1.445 | P192: 0.36811 | Q192: 0.32969 | R192: -0.03842 | S192: 0.03842 | T192: 0.0015 | V192: 1.623 | W192: 0.48428 | X192: 0.46331 | Y192: -0.02097 | Z192: 0.02097 | AA192: 0.0004 | AC192: 1.623 | AD192: 0.48428 | AE192: 0.56439 | AF192: 0.08012 | AG192: 0.08012 | AH192: 0.0064
A193: 1.45 | B193: 0.37156 | C193: 0.45000 | D193: 0.07844 | E193: 0.07844 | F193: 0.0062 | H193: 1.545 | I193: 0.43502 | J193: 0.37170 | K193: -0.06332 | L193: 0.06332 | M193: 0.0040 | O193: 1.45 | P193: 0.37156 | Q193: 0.33291 | R193: -0.03865 | S193: 0.03865 | T193: 0.0015 | V193: 1.63 | W193: 0.48858 | X193: 0.46675 | Y193: -0.02183 | Z193: 0.02183 | AA193: 0.0005 | AC193: 1.63 | AD193: 0.48858 | AE193: 0.56983 | AF193: 0.08125 | AG193: 0.08125 | AH193: 0.0066
A194: 1.455 | B194: 0.37501 | C194: 0.45500 | D194: 0.07999 | E194: 0.07999 | F194: 0.0064 | H194: 1.5505 | I194: 0.43858 | J194: 0.37465 | K194: -0.06393 | L194: 0.06393 | M194: 0.0041 | O194: 1.455 | P194: 0.37501 | Q194: 0.33613 | R194: -0.03888 | S194: 0.03888 | T194: 0.0015 | V194: 1.637 | W194: 0.49287 | X194: 0.47013 | Y194: -0.02273 | Z194: 0.02273 | AA194: 0.0005 | AC194: 1.637 | AD194: 0.49287 | AE194: 0.57526 | AF194: 0.08240 | AG194: 0.08240 | AH194: 0.0068
A195: 1.46 | B195: 0.37844 | C195: =aa00+bb00*(A195-1) -> 0.46000 | D195: 0.08156 | E195: 0.08156 | F195: 0.0067 | H195: 1.556 | I195: =LN(H195) -> 0.44212 | J195: =a0+b0*(A195-1)+c0*(A195-1)^2 -> 0.37757 | K195: -0.06455 | L195: 0.06455 | M195: 0.0042 | O195: 1.46 | P195: =LN(O195) -> 0.37844 | Q195: =a00+b00*(O195-1)+c00*(O195-1)^2+d00*(O195-1)^3 -> 0.33935 | R195: -0.03909 | S195: 0.03909 | T195: 0.0015 | V195: 1.644 | W195: =LN(V195) -> 0.49713 | X195: =a000+b000*(V195-1)+c000*(V195-1)^2+d000*(V195-1)^3+e000*(V195-1)^4 -> 0.47348 | Y195: -0.02366 | Z195: 0.02366 | AA195: 0.0006 | AC195: 1.644 | AD195: =LN(AC195) -> 0.49713 | AE195: =a0000+b0000*(AC195-1)+c0000*(AC195-1)^2+d0000*(AC195-1)^3+e0000*(AC195-1)^4+f0000*(AC195-1)^5 -> 0.58069 | AF195: 0.08355 | AG195: 0.08355 | AH195: 0.0070
A196: =A195+(bb0-aa0)/200 -> 1.465 | B196: =LN(A196) -> 0.38186 | C196: 0.46500 | D196: =C196-B196 -> 0.08314 | E196: =ABS(D196) -> 0.08314 | F196: =D196^2 -> 0.0069 | H196: =H195+(b-a)/200 -> 1.5615 | I196: 0.44565 | J196: 0.38046 | K196: =J196-I196 -> -0.06518 | L196: =ABS(K196) -> 0.06518 | M196: =K196^2 -> 0.0042 | O196: =O195+(bb-aa)/200 -> 1.465 | P196: 0.38186 | Q196: 0.34256 | R196: =Q196-P196 -> -0.03929 | S196: =ABS(R196) -> 0.03929 | T196: =R196^2 -> 0.0015 | V196: =V195+(bbb-aaa)/200 -> 1.651 | W196: 0.50138 | X196: 0.47677 | Y196: =X196-W196 -> -0.02461 | Z196: =ABS(Y196) -> 0.02461 | AA196: =Y196^2 -> 0.0006 | AC196: =AC195+(bbbb-aaaa)/200 -> 1.651 | AD196: 0.50138 | AE196: 0.58610 | AF196: =AE196-AD196 -> 0.08472 | AG196: =ABS(AF196) -> 0.08472 | AH196: =AF196^2 -> 0.0072
A197: 1.47 | B197: 0.38526 | C197: 0.47000 | D197: 0.08474 | E197: 0.08474 | F197: 0.0072 | H197: 1.567 | I197: 0.44916 | J197: 0.38333 | K197: -0.06583 | L197: 0.06583 | M197: 0.0043 | O197: 1.47 | P197: 0.38526 | Q197: 0.34577 | R197: -0.03949 | S197: 0.03949 | T197: 0.0016 | V197: 1.658 | W197: 0.50561 | X197: 0.48001 | Y197: -0.02560 | Z197: 0.02560 | AA197: 0.0007 | AC197: 1.658 | AD197: 0.50561 | AE197: 0.59150 | AF197: 0.08589 | AG197: 0.08589 | AH197: 0.0074
A198: 1.475 | B198: 0.38866 | C198: 0.47500 | D198: 0.08634 | E198: 0.08634 | F198: 0.0075 | H198: 1.5725 | I198: 0.45267 | J198: 0.38617 | K198: -0.06649 | L198: 0.06649 | M198: 0.0044 | O198: 1.475 | P198: 0.38866 | Q198: 0.34898 | R198: -0.03968 | S198: 0.03968 | T198: 0.0016 | V198: 1.665 | W198: 0.50983 | X198: 0.48320 | Y198: -0.02663 | Z198: 0.02663 | AA198: 0.0007 | AC198: 1.665 | AD198: 0.50983 | AE198: 0.59690 | AF198: 0.08708 | AG198: 0.08708 | AH198: 0.0076
A199: 1.48 | B199: 0.39204 | C199: 0.48000 | D199: 0.08796 | E199: 0.08796 | F199: 0.0077 | H199: 1.578 | I199: 0.45616 | J199: 0.38899 | K199: -0.06717 | L199: 0.06717 | M199: 0.0045 | O199: 1.48 | P199: 0.39204 | Q199: 0.35219 | R199: -0.03985 | S199: 0.03985 | T199: 0.0016 | V199: 1.672 | W199: 0.51402 | X199: 0.48634 | Y199: -0.02768 | Z199: 0.02768 | AA199: 0.0008 | AC199: 1.672 | AD199: 0.51402 | AE199: 0.60230 | AF199: 0.08828 | AG199: 0.08828 | AH199: 0.0078
A200: 1.485 | B200: 0.39541 | C200: 0.48500 | D200: 0.08959 | E200: 0.08959 | F200: 0.0080 | H200: 1.5835 | I200: 0.45964 | J200: 0.39178 | K200: -0.06785 | L200: 0.06785 | M200: 0.0046 | O200: 1.485 | P200: 0.39541 | Q200: 0.35539 | R200: -0.04002 | S200: 0.04002 | T200: 0.0016 | V200: 1.679 | W200: 0.51820 | X200: 0.48942 | Y200: -0.02877 | Z200: 0.02877 | AA200: 0.0008 | AC200: 1.679 | AD200: 0.51820 | AE200: 0.60769 | AF200: 0.08949 | AG200: 0.08949 | AH200: 0.0080
... 4 more rows
